Workbook

Sheet Figure 8a left graph
B2: vehicle | D2: 1 mg/kg TPA023B | H2: treat | I2: D | J2: D | K2: V | L2: V | M2: V | N2: D | O2: V | P2: D | Q2: D | R2: V | S2: D | T2: V | U2: V | V2: V | W2: D | X2: D | Y2: V | Z2: V | AA2: D | AB2: D
A3: 10 | B3: 20.3 | C3: 9.893937538 | D3: 2.3 | E3: 0.9551032521 | H3: 0 | I3: 1 | J3: 0 | K3: 10 | L3: 0 | M3: 0 | N3: 0 | O3: 0 | P3: 0 | Q3: 0 | R3: 0 | S3: 0 | T3: 0 | U3: 0 | V3: 0 | W3: 0 | X3: 0 | Y3: 0 | Z3: 0 | AA3: 0 | AB3: 0
A4: 20 | B4: 13.7 | C4: 6.446446049 | D4: 1.7 | E4: 1.193035345 | H4: 1 | I4: 0 | J4: 0 | K4: 15 | L4: 0 | M4: 0 | N4: 0 | O4: 0 | P4: 0 | Q4: 0 | R4: 0 | S4: 0 | T4: 3 | U4: 0 | V4: 0 | W4: 0 | X4: 0 | Y4: 5 | Z4: 0 | AA4: 0 | AB4: 0
A5: 30 | B5: 12.6 | C5: 7.10899274 | D5: 1.9 | E5: 1.580787427 | H5: 2 | I5: 0 | J5: 0 | K5: 0 | L5: 0 | M5: 0 | N5: 0 | O5: 0 | P5: 0 | Q5: 0 | R5: 0 | S5: 0 | T5: 0 | U5: 0 | V5: 0 | W5: 0 | X5: 1 | Y5: 0 | Z5: 0 | AA5: 1 | AB5: 0
A6: 40 | B6: 20.6 | C6: 10.63662436 | D6: 0.7 | E6: 0.4725815626 | H6: 3 | I6: 0 | J6: 0 | K6: 0 | L6: 0 | M6: 1 | N6: 1 | O6: 0 | P6: 0 | Q6: 0 | R6: 4 | S6: 0 | T6: 0 | U6: 0 | V6: 0 | W6: 2 | X6: 6 | Y6: 0 | Z6: 0 | AA6: 0 | AB6: 0
A7: 50 | B7: 29.5 | C7: 9.233092656 | D7: 0.4 | E7: 0.3055050463 | H7: 4 | I7: 0 | J7: 0 | K7: 10 | L7: 0 | M7: 5 | N7: 0 | O7: 0 | P7: 0 | Q7: 0 | R7: 0 | S7: 0 | T7: 0 | U7: 0 | V7: 0 | W7: 0 | X7: 0 | Y7: 0 | Z7: 0 | AA7: 0 | AB7: 0
A8: 60 | B8: 32.8 | C8: 12.01462072 | D8: 0.8 | E8: 0.6110100927 | H8: 5 | I8: 0 | J8: 0 | K8: 0 | L8: 0 | M8: 3 | N8: 0 | O8: 0 | P8: 0 | Q8: 0 | R8: 0 | S8: 0 | T8: 0 | U8: 0 | V8: 0 | W8: 0 | X8: 0 | Y8: 0 | Z8: 2 | AA8: 2 | AB8: 0
A9: 70 | B9: 8.3 | C9: 4.506908278 | D9: 0.6 | E9: 0.3399346342 | H9: 6 | I9: 0 | J9: 0 | K9: 1 | L9: 0 | M9: 2 | N9: 0 | O9: 0 | P9: 0 | Q9: 0 | R9: 2 | S9: 0 | T9: 1 | U9: 0 | V9: 0 | W9: 0 | X9: 0 | Y9: 12 | Z9: 3 | AA9: 0 | AB9: 0
A10: 80 | B10: 3.2 | C10: 1.617954813 | D10: 0.4 | E10: 0.2666666667 | H10: 7 | I10: 0 | J10: 0 | K10: 0 | L10: 0 | M10: 20 | N10: 0 | O10: 0 | P10: 0 | Q10: 0 | R10: 0 | S10: 0 | T10: 0 | U10: 0 | V10: 0 | W10: 0 | X10: 0 | Y10: 17 | Z10: 2 | AA10: 3 | AB10: 0
A11: 90 | B11: 7.9 | C11: 7.257869292 | D11: 0.7 | E11: 0.2603416559 | H11: 8 | I11: 0 | J11: 0 | K11: 0 | L11: 0 | M11: 0 | N11: 0 | O11: 0 | P11: 0 | Q11: 0 | R11: 0 | S11: 0 | T11: 0 | U11: 0 | V11: 0 | W11: 1 | X11: 0 | Y11: 48 | Z11: 1 | AA11: 0 | AB11: 0
A12: 100 | B12: 46.6 | C12: 23.3424744 | D12: 0.7 | E12: 0.5174724899 | H12: 9 | I12: 1 | J12: 0 | K12: 0 | L12: 0 | M12: 11 | N12: 0 | O12: 0 | P12: 0 | Q12: 0 | R12: 0 | S12: 0 | T12: 0 | U12: 0 | V12: 6 | W12: 1 | X12: 0 | Y12: 8 | Z12: 1 | AA12: 1 | AB12: 0 | AE12: =I2 -> D | AF12: D | AG12: V | AH12: V | AI12: V | AJ12: D | AK12: V | AL12: D | AM12: D | AN12: V | AO12: D | AP12: V | AQ12: V | AR12: V | AS12: D | AT12: D | AU12: V | AV12: V | AW12: D | AX12: D
A13: 110 | B13: 35.8 | C13: 14.29203352 | D13: 0.7 | E13: 0.5972157622 | H13: 10 | I13: 0 | J13: 0 | K13: 0 | L13: 0 | M13: 1 | N13: 0 | O13: 0 | P13: 0 | Q13: 0 | R13: 0 | S13: 0 | T13: 0 | U13: 0 | V13: 1 | W13: 0 | X13: 0 | Y13: 8 | Z13: 0 | AA13: 1 | AB13: 1 | AD13: =H14 -> 10 | AE13: =I14 -> 2 | AF13: 0 | AG13: 36 | AH13: 0 | AI13: 43 | AJ13: 1 | AK13: 0 | AL13: 0 | AM13: 0 | AN13: 6 | AO13: 0 | AP13: 4 | AQ13: 0 | AR13: 7 | AS13: 4 | AT13: 7 | AU13: 98 | AV13: 9 | AW13: 8 | AX13: 1
A14: 120 | B14: 33.3 | C14: 12.51403656 | D14: 0 | E14: 0 | G14: avg 10 min | H14: 10 | I14: =SUM(I3:I13) -> 2 | J14: =SUM(J3:J13) -> 0 | K14: 36 | L14: 0 | M14: 43 | N14: 1 | O14: 0 | P14: 0 | Q14: 0 | R14: 6 | S14: 0 | T14: 4 | U14: 0 | V14: 7 | W14: 4 | X14: 7 | Y14: 98 | Z14: 9 | AA14: 8 | AB14: 1 | AD14: =H25 -> 20 | AE14: =I25 -> 0 | AF14: 0 | AG14: 0 | AH14: 3 | AI14: 3 | AJ14: 0 | AK14: 0 | AL14: 0 | AM14: 0 | AN14: 0 | AO14: 0 | AP14: 0 | AQ14: 6 | AR14: 33 | AS14: 2 | AT14: 0 | AU14: 57 | AV14: 35 | AW14: 12 | AX14: 3
A15: 130 | B15: 25.5 | C15: 13.32187007 | D15: 0.3 | E15: 0.1527525232 | H15: 11 | I15: 0 | J15: 0 | K15: 0 | L15: 0 | M15: 0 | N15: 0 | O15: 0 | P15: 0 | Q15: 0 | R15: 0 | S15: 0 | T15: 0 | U15: 0 | V15: 0 | W15: 0 | X15: 0 | Y15: 0 | Z15: 0 | AA15: 1 | AB15: 0 | AD15: =H36 -> 30 | AE15: =I36 -> 0 | AF15: 0 | AG15: 0 | AH15: 31 | AI15: 0 | AJ15: 2 | AK15: 0 | AL15: 1 | AM15: 0 | AN15: 0 | AO15: 0 | AP15: 0 | AQ15: 15 | AR15: 5 | AS15: 0 | AT15: 0 | AU15: 70 | AV15: 5 | AW15: 16 | AX15: 0
A16: 140 | B16: 31.6 | C16: 15.94727424 | D16: 0.3 | E16: 0.3 | H16: 12 | I16: 0 | J16: 0 | K16: 0 | L16: 0 | M16: 0 | N16: 0 | O16: 0 | P16: 0 | Q16: 0 | R16: 0 | S16: 0 | T16: 0 | U16: 0 | V16: 0 | W16: 0 | X16: 0 | Y16: 49 | Z16: 0 | AA16: 1 | AB16: 0 | AD16: =H48 -> 40 | AE16: =I48 -> 0 | AF16: 0 | AG16: 0 | AH16: 0 | AI16: 0 | AJ16: 0 | AK16: 0 | AL16: 0 | AM16: 0 | AN16: 66 | AO16: 0 | AP16: 0 | AQ16: 1 | AR16: 12 | AS16: 4 | AT16: 0 | AU16: 33 | AV16: 94 | AW16: 3 | AX16: 0
A17: 150 | B17: 17.6 | C17: 12.41522363 | D17: 0.4 | E17: 0.3055050463 | H17: 13 | I17: 0 | J17: 0 | K17: 0 | L17: 0 | M17: 3 | N17: 0 | O17: 0 | P17: 0 | Q17: 0 | R17: 0 | S17: 0 | T17: 0 | U17: 0 | V17: 3 | W17: 0 | X17: 0 | Y17: 4 | Z17: 14 | AA17: 0 | AB17: 0 | AD17: =H59 -> 50 | AE17: =I59 -> 0 | AF17: 0 | AG17: 92 | AH17: 8 | AI17: 15 | AJ17: 3 | AK17: 34 | AL17: 0 | AM17: 0 | AN17: 59 | AO17: 0 | AP17: 46 | AQ17: 0 | AR17: 28 | AS17: 0 | AT17: 0 | AU17: 6 | AV17: 7 | AW17: 1 | AX17: 0
A18: 160 | B18: 24.8 | C18: 12.62431516 | D18: 2.1 | E18: 1.058825345 | H18: 14 | I18: 0 | J18: 0 | K18: 0 | L18: 3 | M18: 0 | N18: 0 | O18: 0 | P18: 0 | Q18: 0 | R18: 0 | S18: 0 | T18: 0 | U18: 0 | V18: 1 | W18: 0 | X18: 0 | Y18: 0 | Z18: 9 | AA18: 0 | AB18: 0 | AD18: =H70 -> 60 | AE18: =I70 -> 0 | AF18: 0 | AG18: 3 | AH18: 28 | AI18: 0 | AJ18: 0 | AK18: 76 | AL18: 0 | AM18: 6 | AN18: 0 | AO18: 0 | AP18: 91 | AQ18: 0 | AR18: 80 | AS18: 0 | AT18: 0 | AU18: 50 | AV18: 0 | AW18: 0 | AX18: 2
A19: 170 | B19: 39 | C19: 17.04764565 | D19: 0.6 | E19: 0.2666666667 | H19: 15 | I19: 0 | J19: 0 | K19: 0 | L19: 0 | M19: 0 | N19: 0 | O19: 0 | P19: 0 | Q19: 0 | R19: 0 | S19: 0 | T19: 0 | U19: 5 | V19: 11 | W19: 0 | X19: 0 | Y19: 4 | Z19: 0 | AA19: 0 | AB19: 0 | AD19: =H82 -> 70 | AE19: =I82 -> 0 | AF19: 0 | AG19: 0 | AH19: 10 | AI19: 2 | AJ19: 1 | AK19: 0 | AL19: 0 | AM19: 2 | AN19: 0 | AO19: 0 | AP19: 6 | AQ19: 21 | AR19: 44 | AS19: 0 | AT19: 0 | AU19: 0 | AV19: 0 | AW19: 3 | AX19: 0
A20: 180 | B20: 57.1 | C20: 18.50492427 | D20: 0.6 | E20: 0.3399346342 | H20: 16 | I20: 0 | J20: 0 | K20: 0 | L20: 0 | M20: 0 | N20: 0 | O20: 0 | P20: 0 | Q20: 0 | R20: 0 | S20: 0 | T20: 0 | U20: 1 | V20: 3 | W20: 0 | X20: 0 | Y20: 0 | Z20: 0 | AA20: 2 | AB20: 1 | AD20: =H93 -> 80 | AE20: =I93 -> 0 | AF20: 2 | AG20: 0 | AH20: 0 | AI20: 0 | AJ20: 0 | AK20: 15 | AL20: 0 | AM20: 0 | AN20: 0 | AO20: 0 | AP20: 4 | AQ20: 0 | AR20: 0 | AS20: 0 | AT20: 0 | AU20: 4 | AV20: 9 | AW20: 0 | AX20: 2
A21: 190 | B21: 47.7 | C21: 18.82967516 | D21: 2.7 | E21: 2.7 | H21: 17 | I21: 0 | J21: 0 | K21: 0 | L21: 0 | M21: 0 | N21: 0 | O21: 0 | P21: 0 | Q21: 0 | R21: 0 | S21: 0 | T21: 0 | U21: 0 | V21: 0 | W21: 1 | X21: 0 | Y21: 0 | Z21: 0 | AA21: 6 | AB21: 0 | AD21: =H104 -> 90 | AE21: =I104 -> 0 | AF21: 1 | AG21: 0 | AH21: 0 | AI21: 0 | AJ21: 2 | AK21: 0 | AL21: 0 | AM21: 0 | AN21: 0 | AO21: 0 | AP21: 0 | AQ21: 0 | AR21: 0 | AS21: 1 | AT21: 2 | AU21: 73 | AV21: 6 | AW21: 1 | AX21: 0
A22: 200 | B22: 7.3 | C22: 4.825971405 | D22: 7 | E22: 6.451528673 | H22: 18 | I22: 0 | J22: 0 | K22: 0 | L22: 0 | M22: 0 | N22: 0 | O22: 0 | P22: 0 | Q22: 0 | R22: 0 | S22: 0 | T22: 0 | U22: 0 | V22: 8 | W22: 0 | X22: 0 | Y22: 0 | Z22: 6 | AA22: 1 | AB22: 2 | AD22: =H116 -> 100 | AE22: =I116 -> 0 | AF22: 0 | AG22: 60 | AH22: 0 | AI22: 0 | AJ22: 0 | AK22: 65 | AL22: 5 | AM22: 2 | AN22: 0 | AO22: 0 | AP22: 4 | AQ22: 48 | AR22: 28 | AS22: 0 | AT22: 0 | AU22: 244 | AV22: 17 | AW22: 0 | AX22: 0
A23: 210 | B23: 14.4 | C23: 8.324261729 | D23: 2.8 | E23: 1.547758235 | H23: 19 | I23: 0 | J23: 0 | K23: 0 | L23: 0 | M23: 0 | N23: 0 | O23: 0 | P23: 0 | Q23: 0 | R23: 0 | S23: 0 | T23: 0 | U23: 0 | V23: 1 | W23: 1 | X23: 0 | Y23: 0 | Z23: 2 | AA23: 1 | AB23: 0 | AD23: =H127 -> 110 | AE23: =I127 -> 0 | AF23: 0 | AG23: 11 | AH23: 0 | AI23: 5 | AJ23: 0 | AK23: 0 | AL23: 6 | AM23: 1 | AN23: 36 | AO23: 0 | AP23: 16 | AQ23: 69 | AR23: 71 | AS23: 0 | AT23: 0 | AU23: 10 | AV23: 140 | AW23: 0 | AX23: 0
H24: 20 | I24: 0 | J24: 0 | K24: 0 | L24: 0 | M24: 0 | N24: 0 | O24: 0 | P24: 0 | Q24: 0 | R24: 0 | S24: 0 | T24: 0 | U24: 0 | V24: 6 | W24: 0 | X24: 0 | Y24: 0 | Z24: 4 | AA24: 0 | AB24: 0 | AD24: =H138 -> 120 | AE24: =I138 -> 0 | AF24: 0 | AG24: 44 | AH24: 0 | AI24: 1 | AJ24: 0 | AK24: 0 | AL24: 0 | AM24: 0 | AN24: 21 | AO24: 0 | AP24: 124 | AQ24: 48 | AR24: 30 | AS24: 0 | AT24: 0 | AU24: 65 | AV24: 0 | AW24: 0 | AX24: 0
G25: avg 10 min | H25: 20 | I25: =SUM(I15:I24) -> 0 | J25: =SUM(J15:J24) -> 0 | K25: 0 | L25: 3 | M25: 3 | N25: 0 | O25: 0 | P25: 0 | Q25: 0 | R25: 0 | S25: 0 | T25: 0 | U25: 6 | V25: 33 | W25: 2 | X25: 0 | Y25: 57 | Z25: 35 | AA25: 12 | AB25: 3 | AD25: =H150 -> 130 | AE25: =I150 -> 1 | AF25: 1 | AG25: 129 | AH25: 0 | AI25: 66 | AJ25: 1 | AK25: 0 | AL25: 0 | AM25: 0 | AN25: 0 | AO25: 0 | AP25: 33 | AQ25: 0 | AR25: 0 | AS25: 0 | AT25: 0 | AU25: 10 | AV25: 17 | AW25: 0 | AX25: 0
H26: 21 | I26: 0 | J26: 0 | K26: 0 | L26: 0 | M26: 0 | N26: 0 | O26: 0 | P26: 0 | Q26: 0 | R26: 0 | S26: 0 | T26: 0 | U26: 0 | V26: 5 | W26: 0 | X26: 0 | Y26: 43 | Z26: 0 | AA26: 1 | AB26: 0 | AD26: =H161 -> 140 | AE26: =I161 -> 0 | AF26: 0 | AG26: 27 | AH26: 46 | AI26: 148 | AJ26: 0 | AK26: 0 | AL26: 0 | AM26: 0 | AN26: 0 | AO26: 0 | AP26: 0 | AQ26: 0 | AR26: 90 | AS26: 3 | AT26: 0 | AU26: 0 | AV26: 5 | AW26: 0 | AX26: 0
H27: 22 | I27: 0 | J27: 0 | K27: 0 | L27: 0 | M27: 0 | N27: 0 | O27: 0 | P27: 0 | Q27: 0 | R27: 0 | S27: 0 | T27: 0 | U27: 0 | V27: 0 | W27: 0 | X27: 0 | Y27: 27 | Z27: 0 | AA27: 1 | AB27: 0 | AD27: =H172 -> 150 | AE27: =I172 -> 0 | AF27: 3 | AG27: 0 | AH27: 127 | AI27: 0 | AJ27: 0 | AK27: 0 | AL27: 0 | AM27: 0 | AN27: 0 | AO27: 0 | AP27: 0 | AQ27: 0 | AR27: 21 | AS27: 0 | AT27: 1 | AU27: 12 | AV27: 16 | AW27: 0 | AX27: 0
H28: 23 | I28: 0 | J28: 0 | K28: 0 | L28: 0 | M28: 0 | N28: 0 | O28: 0 | P28: 0 | Q28: 0 | R28: 0 | S28: 0 | T28: 0 | U28: 0 | V28: 0 | W28: 0 | X28: 0 | Y28: 0 | Z28: 0 | AA28: 0 | AB28: 0 | AD28: =H184 -> 160 | AE28: =I184 -> 0 | AF28: 0 | AG28: 0 | AH28: 37 | AI28: 0 | AJ28: 8 | AK28: 10 | AL28: 4 | AM28: 8 | AN28: 0 | AO28: 1 | AP28: 0 | AQ28: 0 | AR28: 20 | AS28: 0 | AT28: 0 | AU28: 124 | AV28: 57 | AW28: 0 | AX28: 0
H29: 24 | I29: 0 | J29: 0 | K29: 0 | L29: 0 | M29: 0 | N29: 0 | O29: 0 | P29: 0 | Q29: 0 | R29: 0 | S29: 0 | T29: 0 | U29: 8 | V29: 0 | W29: 0 | X29: 0 | Y29: 0 | Z29: 1 | AA29: 1 | AB29: 0 | AD29: =H195 -> 170 | AE29: =I195 -> 0 | AF29: 0 | AG29: 0 | AH29: 2 | AI29: 30 | AJ29: 1 | AK29: 79 | AL29: 2 | AM29: 1 | AN29: 0 | AO29: 2 | AP29: 0 | AQ29: 157 | AR29: 16 | AS29: 0 | AT29: 0 | AU29: 96 | AV29: 10 | AW29: 0 | AX29: 0
H30: 25 | I30: 0 | J30: 0 | K30: 0 | L30: 0 | M30: 0 | N30: 2 | O30: 0 | P30: 0 | Q30: 0 | R30: 0 | S30: 0 | T30: 0 | U30: 6 | V30: 0 | W30: 0 | X30: 0 | Y30: 0 | Z30: 1 | AA30: 3 | AB30: 0 | AD30: =H206 -> 180 | AE30: =I206 -> 0 | AF30: 3 | AG30: 18 | AH30: 34 | AI30: 167 | AJ30: 0 | AK30: 74 | AL30: 1 | AM30: 0 | AN30: 0 | AO30: 0 | AP30: 0 | AQ30: 71 | AR30: 0 | AS30: 0 | AT30: 0 | AU30: 136 | AV30: 71 | AW30: 2 | AX30: 0
H31: 26 | I31: 0 | J31: 0 | K31: 0 | L31: 0 | M31: 0 | N31: 0 | O31: 0 | P31: 0 | Q31: 0 | R31: 0 | S31: 0 | T31: 0 | U31: 0 | V31: 0 | W31: 0 | X31: 0 | Y31: 0 | Z31: 0 | AA31: 4 | AB31: 0 | AD31: =H218 -> 190 | AE31: =I218 -> 0 | AF31: 0 | AG31: 141 | AH31: 112 | AI31: 75 | AJ31: 0 | AK31: 0 | AL31: 0 | AM31: 0 | AN31: 0 | AO31: 0 | AP31: 22 | AQ31: 127 | AR31: 0 | AS31: 0 | AT31: 0 | AU31: 0 | AV31: 0 | AW31: 27 | AX31: 0
H32: 27 | I32: 0 | J32: 0 | K32: 0 | L32: 16 | M32: 0 | N32: 0 | O32: 0 | P32: 0 | Q32: 0 | R32: 0 | S32: 0 | T32: 0 | U32: 0 | V32: 0 | W32: 0 | X32: 0 | Y32: 0 | Z32: 1 | AA32: 3 | AB32: 0 | AD32: =H229 -> 200 | AE32: =I229 -> 0 | AF32: 0 | AG32: 48 | AH32: 0 | AI32: 0 | AJ32: 3 | AK32: 0 | AL32: 1 | AM32: 0 | AN32: 10 | AO32: 0 | AP32: 15 | AQ32: 0 | AR32: 0 | AS32: 0 | AT32: 0 | AU32: 0 | AV32: 0 | AW32: 65 | AX32: 1
H33: 28 | I33: 0 | J33: 0 | K33: 0 | L33: 0 | M33: 0 | N33: 0 | O33: 0 | P33: 1 | Q33: 0 | R33: 0 | S33: 0 | T33: 0 | U33: 0 | V33: 0 | W33: 0 | X33: 0 | Y33: 0 | Z33: 2 | AA33: 2 | AB33: 0 | AD33: =H240 -> 210 | AE33: =I240 -> 10 | AF33: 13 | AG33: 31 | AH33: 0 | AI33: 0 | AJ33: 0 | AK33: 0 | AL33: 0 | AM33: 0 | AN33: 82 | AO33: 0 | AP33: 24 | AQ33: 0 | AR33: 7 | AS33: 0 | AT33: 0 | AU33: 0 | AV33: 0 | AW33: 5 | AX33: 0
H34: 29 | I34: 0 | J34: 0 | K34: 0 | L34: 15 | M34: 0 | N34: 0 | O34: 0 | P34: 0 | Q34: 0 | R34: 0 | S34: 0 | T34: 0 | U34: 1 | V34: 0 | W34: 0 | X34: 0 | Y34: 0 | Z34: 0 | AA34: 1 | AB34: 0
H35: 30 | I35: 0 | J35: 0 | K35: 0 | L35: 0 | M35: 0 | N35: 0 | O35: 0 | P35: 0 | Q35: 0 | R35: 0 | S35: 0 | T35: 0 | U35: 0 | V35: 0 | W35: 0 | X35: 0 | Y35: 0 | Z35: 0 | AA35: 0 | AB35: 0
G36: avg 10 min | H36: 30 | I36: =SUM(I26:I35) -> 0 | J36: =SUM(J26:J35) -> 0 | K36: 0 | L36: 31 | M36: 0 | N36: 2 | O36: 0 | P36: 1 | Q36: 0 | R36: 0 | S36: 0 | T36: 0 | U36: 15 | V36: 5 | W36: 0 | X36: 0 | Y36: 70 | Z36: 5 | AA36: 16 | AB36: 0
H37: 0 | I37: 0 | J37: 0 | K37: 0 | L37: 0 | M37: 0 | N37: 0 | O37: 0 | P37: 0 | Q37: 0 | R37: 0 | S37: 0 | T37: 0 | U37: 0 | V37: 0 | W37: 0 | X37: 0 | Y37: 29 | Z37: 0 | AA37: 2 | AB37: 0
H38: 1 | I38: 0 | J38: 0 | K38: 0 | L38: 0 | M38: 0 | N38: 0 | O38: 0 | P38: 0 | Q38: 0 | R38: 0 | S38: 0 | T38: 0 | U38: 0 | V38: 0 | W38: 0 | X38: 0 | Y38: 4 | Z38: 20 | AA38: 1 | AB38: 0
H39: 2 | I39: 0 | J39: 0 | K39: 0 | L39: 0 | M39: 0 | N39: 0 | O39: 0 | P39: 0 | Q39: 0 | R39: 0 | S39: 0 | T39: 0 | U39: 0 | V39: 0 | W39: 0 | X39: 0 | Y39: 0 | Z39: 18 | AA39: 0 | AB39: 0
H40: 3 | I40: 0 | J40: 0 | K40: 0 | L40: 0 | M40: 0 | N40: 0 | O40: 0 | P40: 0 | Q40: 0 | R40: 0 | S40: 0 | T40: 0 | U40: 0 | V40: 0 | W40: 0 | X40: 0 | Y40: 0 | Z40: 6 | AA40: 0 | AB40: 0
H41: 4 | I41: 0 | J41: 0 | K41: 0 | L41: 0 | M41: 0 | N41: 0 | O41: 0 | P41: 0 | Q41: 0 | R41: 0 | S41: 0 | T41: 0 | U41: 1 | V41: 0 | W41: 0 | X41: 0 | Y41: 0 | Z41: 0 | AA41: 0 | AB41: 0
H42: 5 | I42: 0 | J42: 0 | K42: 0 | L42: 0 | M42: 0 | N42: 0 | O42: 0 | P42: 0 | Q42: 0 | R42: 0 | S42: 0 | T42: 0 | U42: 0 | V42: 0 | W42: 0 | X42: 0 | Y42: 0 | Z42: 1 | AA42: 0 | AB42: 0
H43: 6 | I43: 0 | J43: 0 | K43: 0 | L43: 0 | M43: 0 | N43: 0 | O43: 0 | P43: 0 | Q43: 0 | R43: 0 | S43: 0 | T43: 0 | U43: 0 | V43: 0 | W43: 2 | X43: 0 | Y43: 0 | Z43: 3 | AA43: 0 | AB43: 0
H44: 7 | I44: 0 | J44: 0 | K44: 0 | L44: 0 | M44: 0 | N44: 0 | O44: 0 | P44: 0 | Q44: 0 | R44: 42 | S44: 0 | T44: 0 | U44: 0 | V44: 0 | W44: 0 | X44: 0 | Y44: 0 | Z44: 26 | AA44: 0 | AB44: 0
H45: 8 | I45: 0 | J45: 0 | K45: 0 | L45: 0 | M45: 0 | N45: 0 | O45: 0 | P45: 0 | Q45: 0 | R45: 13 | S45: 0 | T45: 0 | U45: 0 | V45: 0 | W45: 0 | X45: 0 | Y45: 0 | Z45: 0 | AA45: 0 | AB45: 0
H46: 9 | I46: 0 | J46: 0 | K46: 0 | L46: 0 | M46: 0 | N46: 0 | O46: 0 | P46: 0 | Q46: 0 | R46: 9 | S46: 0 | T46: 0 | U46: 0 | V46: 0 | W46: 2 | X46: 0 | Y46: 0 | Z46: 18 | AA46: 0 | AB46: 0
H47: 10 | I47: 0 | J47: 0 | K47: 0 | L47: 0 | M47: 0 | N47: 0 | O47: 0 | P47: 0 | Q47: 0 | R47: 2 | S47: 0 | T47: 0 | U47: 0 | V47: 12 | W47: 0 | X47: 0 | Y47: 0 | Z47: 2 | AA47: 0 | AB47: 0
G48: avg 10 min | H48: 40 | I48: =SUM(I37:I47) -> 0 | J48: =SUM(J37:J47) -> 0 | K48: 0 | L48: 0 | M48: 0 | N48: 0 | O48: 0 | P48: 0 | Q48: 0 | R48: 66 | S48: 0 | T48: 0 | U48: 1 | V48: 12 | W48: 4 | X48: 0 | Y48: 33 | Z48: 94 | AA48: 3 | AB48: 0
H49: 11 | I49: 0 | J49: 0 | K49: 0 | L49: 8 | M49: 3 | N49: 0 | O49: 0 | P49: 0 | Q49: 0 | R49: 3 | S49: 0 | T49: 0 | U49: 0 | V49: 5 | W49: 0 | X49: 0 | Y49: 0 | Z49: 0 | AA49: 0 | AB49: 0
H50: 12 | I50: 0 | J50: 0 | K50: 27 | L50: 0 | M50: 0 | N50: 0 | O50: 0 | P50: 0 | Q50: 0 | R50: 2 | S50: 0 | T50: 0 | U50: 0 | V50: 1 | W50: 0 | X50: 0 | Y50: 0 | Z50: 0 | AA50: 0 | AB50: 0
H51: 13 | I51: 0 | J51: 0 | K51: 34 | L51: 0 | M51: 4 | N51: 0 | O51: 34 | P51: 0 | Q51: 0 | R51: 0 | S51: 0 | T51: 0 | U51: 0 | V51: 2 | W51: 0 | X51: 0 | Y51: 0 | Z51: 0 | AA51: 1 | AB51: 0
H52: 14 | I52: 0 | J52: 0 | K52: 12 | L52: 0 | M52: 1 | N52: 1 | O52: 0 | P52: 0 | Q52: 0 | R52: 0 | S52: 0 | T52: 0 | U52: 0 | V52: 0 | W52: 0 | X52: 0 | Y52: 0 | Z52: 0 | AA52: 0 | AB52: 0
H53: 15 | I53: 0 | J53: 0 | K53: 10 | L53: 0 | M53: 0 | N53: 2 | O53: 0 | P53: 0 | Q53: 0 | R53: 34 | S53: 0 | T53: 0 | U53: 0 | V53: 0 | W53: 0 | X53: 0 | Y53: 1 | Z53: 0 | AA53: 0 | AB53: 0
H54: 16 | I54: 0 | J54: 0 | K54: 0 | L54: 0 | M54: 0 | N54: 0 | O54: 0 | P54: 0 | Q54: 0 | R54: 20 | S54: 0 | T54: 0 | U54: 0 | V54: 1 | W54: 0 | X54: 0 | Y54: 1 | Z54: 0 | AA54: 0 | AB54: 0
H55: 17 | I55: 0 | J55: 0 | K55: 3 | L55: 0 | M55: 1 | N55: 0 | O55: 0 | P55: 0 | Q55: 0 | R55: 0 | S55: 0 | T55: 32 | U55: 0 | V55: 5 | W55: 0 | X55: 0 | Y55: 0 | Z55: 0 | AA55: 0 | AB55: 0
H56: 18 | I56: 0 | J56: 0 | K56: 4 | L56: 0 | M56: 0 | N56: 0 | O56: 0 | P56: 0 | Q56: 0 | R56: 0 | S56: 0 | T56: 0 | U56: 0 | V56: 0 | W56: 0 | X56: 0 | Y56: 0 | Z56: 6 | AA56: 0 | AB56: 0
H57: 19 | I57: 0 | J57: 0 | K57: 1 | L57: 0 | M57: 3 | N57: 0 | O57: 0 | P57: 0 | Q57: 0 | R57: 0 | S57: 0 | T57: 13 | U57: 0 | V57: 5 | W57: 0 | X57: 0 | Y57: 1 | Z57: 1 | AA57: 0 | AB57: 0
H58: 20 | I58: 0 | J58: 0 | K58: 1 | L58: 0 | M58: 3 | N58: 0 | O58: 0 | P58: 0 | Q58: 0 | R58: 0 | S58: 0 | T58: 1 | U58: 0 | V58: 9 | W58: 0 | X58: 0 | Y58: 3 | Z58: 0 | AA58: 0 | AB58: 0
G59: avg 10 min | H59: 50 | I59: =SUM(I49:I58) -> 0 | J59: =SUM(J49:J58) -> 0 | K59: 92 | L59: 8 | M59: 15 | N59: 3 | O59: 34 | P59: 0 | Q59: 0 | R59: 59 | S59: 0 | T59: 46 | U59: 0 | V59: 28 | W59: 0 | X59: 0 | Y59: 6 | Z59: 7 | AA59: 1 | AB59: 0
H60: 21 | I60: 0 | J60: 0 | K60: 3 | L60: 0 | M60: 0 | N60: 0 | O60: 0 | P60: 0 | Q60: 0 | R60: 0 | S60: 0 | T60: 0 | U60: 0 | V60: 24 | W60: 0 | X60: 0 | Y60: 13 | Z60: 0 | AA60: 0 | AB60: 0
H61: 22 | I61: 0 | J61: 0 | K61: 0 | L61: 0 | M61: 0 | N61: 0 | O61: 0 | P61: 0 | Q61: 0 | R61: 0 | S61: 0 | T61: 21 | U61: 0 | V61: 27 | W61: 0 | X61: 0 | Y61: 1 | Z61: 0 | AA61: 0 | AB61: 0
H62: 23 | I62: 0 | J62: 0 | K62: 0 | L62: 0 | M62: 0 | N62: 0 | O62: 8 | P62: 0 | Q62: 0 | R62: 0 | S62: 0 | T62: 19 | U62: 0 | V62: 1 | W62: 0 | X62: 0 | Y62: 1 | Z62: 0 | AA62: 0 | AB62: 0
H63: 24 | I63: 0 | J63: 0 | K63: 0 | L63: 0 | M63: 0 | N63: 0 | O63: 20 | P63: 0 | Q63: 0 | R63: 0 | S63: 0 | T63: 0 | U63: 0 | V63: 0 | W63: 0 | X63: 0 | Y63: 0 | Z63: 0 | AA63: 0 | AB63: 0
H64: 25 | I64: 0 | J64: 0 | K64: 0 | L64: 0 | M64: 0 | N64: 0 | O64: 32 | P64: 0 | Q64: 3 | R64: 0 | S64: 0 | T64: 9 | U64: 0 | V64: 12 | W64: 0 | X64: 0 | Y64: 3 | Z64: 0 | AA64: 0 | AB64: 2
H65: 26 | I65: 0 | J65: 0 | K65: 0 | L65: 0 | M65: 0 | N65: 0 | O65: 16 | P65: 0 | Q65: 0 | R65: 0 | S65: 0 | T65: 11 | U65: 0 | V65: 8 | W65: 0 | X65: 0 | Y65: 10 | Z65: 0 | AA65: 0 | AB65: 0
H66: 27 | I66: 0 | J66: 0 | K66: 0 | L66: 13 | M66: 0 | N66: 0 | O66: 0 | P66: 0 | Q66: 0 | R66: 0 | S66: 0 | T66: 1 | U66: 0 | V66: 0 | W66: 0 | X66: 0 | Y66: 2 | Z66: 0 | AA66: 0 | AB66: 0
H67: 28 | I67: 0 | J67: 0 | K67: 0 | L67: 11 | M67: 0 | N67: 0 | O67: 0 | P67: 0 | Q67: 0 | R67: 0 | S67: 0 | T67: 8 | U67: 0 | V67: 0 | W67: 0 | X67: 0 | Y67: 7 | Z67: 0 | AA67: 0 | AB67: 0
H68: 29 | I68: 0 | J68: 0 | K68: 0 | L68: 2 | M68: 0 | N68: 0 | O68: 0 | P68: 0 | Q68: 0 | R68: 0 | S68: 0 | T68: 21 | U68: 0 | V68: 8 | W68: 0 | X68: 0 | Y68: 9 | Z68: 0 | AA68: 0 | AB68: 0
H69: 30 | I69: 0 | J69: 0 | K69: 0 | L69: 2 | M69: 0 | N69: 0 | O69: 0 | P69: 0 | Q69: 3 | R69: 0 | S69: 0 | T69: 1 | U69: 0 | V69: 0 | W69: 0 | X69: 0 | Y69: 4 | Z69: 0 | AA69: 0 | AB69: 0
G70: avg 10 min | H70: 60 | I70: =SUM(I60:I69) -> 0 | J70: =SUM(J60:J69) -> 0 | K70: 3 | L70: 28 | M70: 0 | N70: 0 | O70: 76 | P70: 0 | Q70: 6 | R70: 0 | S70: 0 | T70: 91 | U70: 0 | V70: 80 | W70: 0 | X70: 0 | Y70: 50 | Z70: 0 | AA70: 0 | AB70: 2
H71: 0 | I71: 0 | J71: 0 | K71: 0 | L71: 3 | M71: 0 | N71: 1 | O71: 0 | P71: 0 | Q71: 2 | R71: 0 | S71: 0 | T71: 0 | U71: 0 | V71: 11 | W71: 0 | X71: 0 | Y71: 0 | Z71: 0 | AA71: 0 | AB71: 0
H72: 1 | I72: 0 | J72: 0 | K72: 0 | L72: 3 | M72: 0 | N72: 0 | O72: 0 | P72: 0 | Q72: 0 | R72: 0 | S72: 0 | T72: 1 | U72: 0 | V72: 4 | W72: 0 | X72: 0 | Y72: 0 | Z72: 0 | AA72: 0 | AB72: 0
H73: 2 | I73: 0 | J73: 0 | K73: 0 | L73: 0 | M73: 0 | N73: 0 | O73: 0 | P73: 0 | Q73: 0 | R73: 0 | S73: 0 | T73: 5 | U73: 0 | V73: 23 | W73: 0 | X73: 0 | Y73: 0 | Z73: 0 | AA73: 0 | AB73: 0
H74: 3 | I74: 0 | J74: 0 | K74: 0 | L74: 0 | M74: 0 | N74: 0 | O74: 0 | P74: 0 | Q74: 0 | R74: 0 | S74: 0 | T74: 0 | U74: 0 | V74: 5 | W74: 0 | X74: 0 | Y74: 0 | Z74: 0 | AA74: 2 | AB74: 0
H75: 4 | I75: 0 | J75: 0 | K75: 0 | L75: 0 | M75: 0 | N75: 0 | O75: 0 | P75: 0 | Q75: 0 | R75: 0 | S75: 0 | T75: 0 | U75: 0 | V75: 1 | W75: 0 | X75: 0 | Y75: 0 | Z75: 0 | AA75: 0 | AB75: 0
H76: 5 | I76: 0 | J76: 0 | K76: 0 | L76: 4 | M76: 0 | N76: 0 | O76: 0 | P76: 0 | Q76: 0 | R76: 0 | S76: 0 | T76: 0 | U76: 0 | V76: 0 | W76: 0 | X76: 0 | Y76: 0 | Z76: 0 | AA76: 0 | AB76: 0
H77: 6 | I77: 0 | J77: 0 | K77: 0 | L77: 0 | M77: 2 | N77: 0 | O77: 0 | P77: 0 | Q77: 0 | R77: 0 | S77: 0 | T77: 0 | U77: 0 | V77: 0 | W77: 0 | X77: 0 | Y77: 0 | Z77: 0 | AA77: 1 | AB77: 0
H78: 7 | I78: 0 | J78: 0 | K78: 0 | L78: 0 | M78: 0 | N78: 0 | O78: 0 | P78: 0 | Q78: 0 | R78: 0 | S78: 0 | T78: 0 | U78: 9 | V78: 0 | W78: 0 | X78: 0 | Y78: 0 | Z78: 0 | AA78: 0 | AB78: 0
H79: 8 | I79: 0 | J79: 0 | K79: 0 | L79: 0 | M79: 0 | N79: 0 | O79: 0 | P79: 0 | Q79: 0 | R79: 0 | S79: 0 | T79: 0 | U79: 3 | V79: 0 | W79: 0 | X79: 0 | Y79: 0 | Z79: 0 | AA79: 0 | AB79: 0
H80: 9 | I80: 0 | J80: 0 | K80: 0 | L80: 0 | M80: 0 | N80: 0 | O80: 0 | P80: 0 | Q80: 0 | R80: 0 | S80: 0 | T80: 0 | U80: 9 | V80: 0 | W80: 0 | X80: 0 | Y80: 0 | Z80: 0 | AA80: 0 | AB80: 0
H81: 10 | I81: 0 | J81: 0 | K81: 0 | L81: 0 | M81: 0 | N81: 0 | O81: 0 | P81: 0 | Q81: 0 | R81: 0 | S81: 0 | T81: 0 | U81: 0 | V81: 0 | W81: 0 | X81: 0 | Y81: 0 | Z81: 0 | AA81: 0 | AB81: 0
G82: avg 10 min | H82: 70 | I82: =SUM(I71:I81) -> 0 | J82: =SUM(J71:J81) -> 0 | K82: 0 | L82: 10 | M82: 2 | N82: 1 | O82: 0 | P82: 0 | Q82: 2 | R82: 0 | S82: 0 | T82: 6 | U82: 21 | V82: 44 | W82: 0 | X82: 0 | Y82: 0 | Z82: 0 | AA82: 3 | AB82: 0
H83: 11 | I83: 0 | J83: 0 | K83: 0 | L83: 0 | M83: 0 | N83: 0 | O83: 0 | P83: 0 | Q83: 0 | R83: 0 | S83: 0 | T83: 0 | U83: 0 | V83: 0 | W83: 0 | X83: 0 | Y83: 0 | Z83: 0 | AA83: 0 | AB83: 0
H84: 12 | I84: 0 | J84: 0 | K84: 0 | L84: 0 | M84: 0 | N84: 0 | O84: 0 | P84: 0 | Q84: 0 | R84: 0 | S84: 0 | T84: 0 | U84: 0 | V84: 0 | W84: 0 | X84: 0 | Y84: 0 | Z84: 0 | AA84: 0 | AB84: 0
H85: 13 | I85: 0 | J85: 0 | K85: 0 | L85: 0 | M85: 0 | N85: 0 | O85: 0 | P85: 0 | Q85: 0 | R85: 0 | S85: 0 | T85: 0 | U85: 0 | V85: 0 | W85: 0 | X85: 0 | Y85: 0 | Z85: 0 | AA85: 0 | AB85: 0
H86: 14 | I86: 0 | J86: 0 | K86: 0 | L86: 0 | M86: 0 | N86: 0 | O86: 15 | P86: 0 | Q86: 0 | R86: 0 | S86: 0 | T86: 0 | U86: 0 | V86: 0 | W86: 0 | X86: 0 | Y86: 0 | Z86: 0 | AA86: 0 | AB86: 0
H87: 15 | I87: 0 | J87: 0 | K87: 0 | L87: 0 | M87: 0 | N87: 0 | O87: 0 | P87: 0 | Q87: 0 | R87: 0 | S87: 0 | T87: 0 | U87: 0 | V87: 0 | W87: 0 | X87: 0 | Y87: 0 | Z87: 0 | AA87: 0 | AB87: 0
H88: 16 | I88: 0 | J88: 2 | K88: 0 | L88: 0 | M88: 0 | N88: 0 | O88: 0 | P88: 0 | Q88: 0 | R88: 0 | S88: 0 | T88: 4 | U88: 0 | V88: 0 | W88: 0 | X88: 0 | Y88: 0 | Z88: 3 | AA88: 0 | AB88: 0
H89: 17 | I89: 0 | J89: 0 | K89: 0 | L89: 0 | M89: 0 | N89: 0 | O89: 0 | P89: 0 | Q89: 0 | R89: 0 | S89: 0 | T89: 0 | U89: 0 | V89: 0 | W89: 0 | X89: 0 | Y89: 0 | Z89: 1 | AA89: 0 | AB89: 0
H90: 18 | I90: 0 | J90: 0 | K90: 0 | L90: 0 | M90: 0 | N90: 0 | O90: 0 | P90: 0 | Q90: 0 | R90: 0 | S90: 0 | T90: 0 | U90: 0 | V90: 0 | W90: 0 | X90: 0 | Y90: 0 | Z90: 0 | AA90: 0 | AB90: 0
H91: 19 | I91: 0 | J91: 0 | K91: 0 | L91: 0 | M91: 0 | N91: 0 | O91: 0 | P91: 0 | Q91: 0 | R91: 0 | S91: 0 | T91: 0 | U91: 0 | V91: 0 | W91: 0 | X91: 0 | Y91: 1 | Z91: 2 | AA91: 0 | AB91: 0
H92: 20 | I92: 0 | J92: 0 | K92: 0 | L92: 0 | M92: 0 | N92: 0 | O92: 0 | P92: 0 | Q92: 0 | R92: 0 | S92: 0 | T92: 0 | U92: 0 | V92: 0 | W92: 0 | X92: 0 | Y92: 3 | Z92: 3 | AA92: 0 | AB92: 2
G93: avg 10 min | H93: 80 | I93: =SUM(I83:I92) -> 0 | J93: =SUM(J83:J92) -> 2 | K93: 0 | L93: 0 | M93: 0 | N93: 0 | O93: 15 | P93: 0 | Q93: 0 | R93: 0 | S93: 0 | T93: 4 | U93: 0 | V93: 0 | W93: 0 | X93: 0 | Y93: 4 | Z93: 9 | AA93: 0 | AB93: 2
H94: 21 | I94: 0 | J94: 1 | K94: 0 | L94: 0 | M94: 0 | N94: 0 | O94: 0 | P94: 0 | Q94: 0 | R94: 0 | S94: 0 | T94: 0 | U94: 0 | V94: 0 | W94: 0 | X94: 0 | Y94: 0 | Z94: 2 | AA94: 0 | AB94: 0
H95: 22 | I95: 0 | J95: 0 | K95: 0 | L95: 0 | M95: 0 | N95: 0 | O95: 0 | P95: 0 | Q95: 0 | R95: 0 | S95: 0 | T95: 0 | U95: 0 | V95: 0 | W95: 0 | X95: 0 | Y95: 6 | Z95: 0 | AA95: 1 | AB95: 0
H96: 23 | I96: 0 | J96: 0 | K96: 0 | L96: 0 | M96: 0 | N96: 0 | O96: 0 | P96: 0 | Q96: 0 | R96: 0 | S96: 0 | T96: 0 | U96: 0 | V96: 0 | W96: 0 | X96: 0 | Y96: 6 | Z96: 0 | AA96: 0 | AB96: 0
H97: 24 | I97: 0 | J97: 0 | K97: 0 | L97: 0 | M97: 0 | N97: 0 | O97: 0 | P97: 0 | Q97: 0 | R97: 0 | S97: 0 | T97: 0 | U97: 0 | V97: 0 | W97: 0 | X97: 0 | Y97: 0 | Z97: 2 | AA97: 0 | AB97: 0
H98: 25 | I98: 0 | J98: 0 | K98: 0 | L98: 0 | M98: 0 | N98: 0 | O98: 0 | P98: 0 | Q98: 0 | R98: 0 | S98: 0 | T98: 0 | U98: 0 | V98: 0 | W98: 1 | X98: 2 | Y98: 14 | Z98: 0 | AA98: 0 | AB98: 0
H99: 26 | I99: 0 | J99: 0 | K99: 0 | L99: 0 | M99: 0 | N99: 0 | O99: 0 | P99: 0 | Q99: 0 | R99: 0 | S99: 0 | T99: 0 | U99: 0 | V99: 0 | W99: 0 | X99: 0 | Y99: 0 | Z99: 1 | AA99: 0 | AB99: 0
H100: 27 | I100: 0 | J100: 0 | K100: 0 | L100: 0 | M100: 0 | N100: 0 | O100: 0 | P100: 0 | Q100: 0 | R100: 0 | S100: 0 | T100: 0 | U100: 0 | V100: 0 | W100: 0 | X100: 0 | Y100: 6 | Z100: 0 | AA100: 0 | AB100: 0
H101: 28 | I101: 0 | J101: 0 | K101: 0 | L101: 0 | M101: 0 | N101: 0 | O101: 0 | P101: 0 | Q101: 0 | R101: 0 | S101: 0 | T101: 0 | U101: 0 | V101: 0 | W101: 0 | X101: 0 | Y101: 23 | Z101: 0 | AA101: 0 | AB101: 0
H102: 29 | I102: 0 | J102: 0 | K102: 0 | L102: 0 | M102: 0 | N102: 0 | O102: 0 | P102: 0 | Q102: 0 | R102: 0 | S102: 0 | T102: 0 | U102: 0 | V102: 0 | W102: 0 | X102: 0 | Y102: 0 | Z102: 1 | AA102: 0 | AB102: 0
H103: 30 | I103: 0 | J103: 0 | K103: 0 | L103: 0 | M103: 0 | N103: 2 | O103: 0 | P103: 0 | Q103: 0 | R103: 0 | S103: 0 | T103: 0 | U103: 0 | V103: 0 | W103: 0 | X103: 0 | Y103: 18 | Z103: 0 | AA103: 0 | AB103: 0
G104: avg 10 min | H104: 90 | I104: =SUM(I94:I103) -> 0 | J104: =SUM(J94:J103) -> 1 | K104: 0 | L104: 0 | M104: 0 | N104: 2 | O104: 0 | P104: 0 | Q104: 0 | R104: 0 | S104: 0 | T104: 0 | U104: 0 | V104: 0 | W104: 1 | X104: 2 | Y104: 73 | Z104: 6 | AA104: 1 | AB104: 0
H105: 0 | I105: 0 | J105: 0 | K105: 0 | L105: 0 | M105: 0 | N105: 0 | O105: 2 | P105: 0 | Q105: 0 | R105: 0 | S105: 0 | T105: 0 | U105: 0 | V105: 0 | W105: 0 | X105: 0 | Y105: 0 | Z105: 3 | AA105: 0 | AB105: 0
H106: 1 | I106: 0 | J106: 0 | K106: 17 | L106: 0 | M106: 0 | N106: 0 | O106: 0 | P106: 3 | Q106: 0 | R106: 0 | S106: 0 | T106: 0 | U106: 0 | V106: 0 | W106: 0 | X106: 0 | Y106: 7 | Z106: 1 | AA106: 0 | AB106: 0
H107: 2 | I107: 0 | J107: 0 | K107: 0 | L107: 0 | M107: 0 | N107: 0 | O107: 4 | P107: 2 | Q107: 1 | R107: 0 | S107: 0 | T107: 0 | U107: 0 | V107: 0 | W107: 0 | X107: 0 | Y107: 30 | Z107: 0 | AA107: 0 | AB107: 0
H108: 3 | I108: 0 | J108: 0 | K108: 2 | L108: 0 | M108: 0 | N108: 0 | O108: 0 | P108: 0 | Q108: 0 | R108: 0 | S108: 0 | T108: 0 | U108: 12 | V108: 0 | W108: 0 | X108: 0 | Y108: 6 | Z108: 2 | AA108: 0 | AB108: 0
H109: 4 | I109: 0 | J109: 0 | K109: 20 | L109: 0 | M109: 0 | N109: 0 | O109: 24 | P109: 0 | Q109: 0 | R109: 0 | S109: 0 | T109: 0 | U109: 3 | V109: 0 | W109: 0 | X109: 0 | Y109: 0 | Z109: 5 | AA109: 0 | AB109: 0
H110: 5 | I110: 0 | J110: 0 | K110: 21 | L110: 0 | M110: 0 | N110: 0 | O110: 14 | P110: 0 | Q110: 0 | R110: 0 | S110: 0 | T110: 0 | U110: 10 | V110: 0 | W110: 0 | X110: 0 | Y110: 8 | Z110: 0 | AA110: 0 | AB110: 0
H111: 6 | I111: 0 | J111: 0 | K111: 0 | L111: 0 | M111: 0 | N111: 0 | O111: 18 | P111: 0 | Q111: 0 | R111: 0 | S111: 0 | T111: 0 | U111: 11 | V111: 0 | W111: 0 | X111: 0 | Y111: 49 | Z111: 0 | AA111: 0 | AB111: 0
H112: 7 | I112: 0 | J112: 0 | K112: 0 | L112: 0 | M112: 0 | N112: 0 | O112: 0 | P112: 0 | Q112: 1 | R112: 0 | S112: 0 | T112: 1 | U112: 6 | V112: 3 | W112: 0 | X112: 0 | Y112: 37 | Z112: 6 | AA112: 0 | AB112: 0
H113: 8 | I113: 0 | J113: 0 | K113: 0 | L113: 0 | M113: 0 | N113: 0 | O113: 0 | P113: 0 | Q113: 0 | R113: 0 | S113: 0 | T113: 0 | U113: 3 | V113: 17 | W113: 0 | X113: 0 | Y113: 35 | Z113: 0 | AA113: 0 | AB113: 0
H114: 9 | I114: 0 | J114: 0 | K114: 0 | L114: 0 | M114: 0 | N114: 0 | O114: 0 | P114: 0 | Q114: 0 | R114: 0 | S114: 0 | T114: 0 | U114: 2 | V114: 2 | W114: 0 | X114: 0 | Y114: 43 | Z114: 0 | AA114: 0 | AB114: 0
H115: 10 | I115: 0 | J115: 0 | K115: 0 | L115: 0 | M115: 0 | N115: 0 | O115: 3 | P115: 0 | Q115: 0 | R115: 0 | S115: 0 | T115: 3 | U115: 1 | V115: 6 | W115: 0 | X115: 0 | Y115: 29 | Z115: 0 | AA115: 0 | AB115: 0
G116: avg 10 min | H116: 100 | I116: =SUM(I105:I115) -> 0 | J116: =SUM(J105:J115) -> 0 | K116: 60 | L116: 0 | M116: 0 | N116: 0 | O116: 65 | P116: 5 | Q116: 2 | R116: 0 | S116: 0 | T116: 4 | U116: 48 | V116: 28 | W116: 0 | X116: 0 | Y116: 244 | Z116: 17 | AA116: 0 | AB116: 0
H117: 11 | I117: 0 | J117: 0 | K117: 0 | L117: 0 | M117: 0 | N117: 0 | O117: 0 | P117: 0 | Q117: 1 | R117: 0 | S117: 0 | T117: 0 | U117: 0 | V117: 5 | W117: 0 | X117: 0 | Y117: 0 | Z117: 26 | AA117: 0 | AB117: 0
H118: 12 | I118: 0 | J118: 0 | K118: 0 | L118: 0 | M118: 0 | N118: 0 | O118: 0 | P118: 0 | Q118: 0 | R118: 2 | S118: 0 | T118: 0 | U118: 0 | V118: 0 | W118: 0 | X118: 0 | Y118: 5 | Z118: 12 | AA118: 0 | AB118: 0
H119: 13 | I119: 0 | J119: 0 | K119: 0 | L119: 0 | M119: 0 | N119: 0 | O119: 0 | P119: 0 | Q119: 0 | R119: 7 | S119: 0 | T119: 1 | U119: 1 | V119: 7 | W119: 0 | X119: 0 | Y119: 0 | Z119: 37 | AA119: 0 | AB119: 0
H120: 14 | I120: 0 | J120: 0 | K120: 0 | L120: 0 | M120: 0 | N120: 0 | O120: 0 | P120: 0 | Q120: 0 | R120: 9 | S120: 0 | T120: 0 | U120: 3 | V120: 3 | W120: 0 | X120: 0 | Y120: 0 | Z120: 29 | AA120: 0 | AB120: 0
H121: 15 | I121: 0 | J121: 0 | K121: 1 | L121: 0 | M121: 0 | N121: 0 | O121: 0 | P121: 2 | Q121: 0 | R121: 0 | S121: 0 | T121: 4 | U121: 2 | V121: 19 | W121: 0 | X121: 0 | Y121: 0 | Z121: 23 | AA121: 0 | AB121: 0
H122: 16 | I122: 0 | J122: 0 | K122: 0 | L122: 0 | M122: 0 | N122: 0 | O122: 0 | P122: 2 | Q122: 0 | R122: 0 | S122: 0 | T122: 9 | U122: 11 | V122: 1 | W122: 0 | X122: 0 | Y122: 0 | Z122: 1 | AA122: 0 | AB122: 0
H123: 17 | I123: 0 | J123: 0 | K123: 0 | L123: 0 | M123: 0 | N123: 0 | O123: 0 | P123: 1 | Q123: 0 | R123: 1 | S123: 0 | T123: 0 | U123: 0 | V123: 0 | W123: 0 | X123: 0 | Y123: 0 | Z123: 4 | AA123: 0 | AB123: 0
H124: 18 | I124: 0 | J124: 0 | K124: 6 | L124: 0 | M124: 0 | N124: 0 | O124: 0 | P124: 0 | Q124: 0 | R124: 17 | S124: 0 | T124: 2 | U124: 3 | V124: 6 | W124: 0 | X124: 0 | Y124: 0 | Z124: 0 | AA124: 0 | AB124: 0
H125: 19 | I125: 0 | J125: 0 | K125: 4 | L125: 0 | M125: 0 | N125: 0 | O125: 0 | P125: 1 | Q125: 0 | R125: 0 | S125: 0 | T125: 0 | U125: 31 | V125: 3 | W125: 0 | X125: 0 | Y125: 0 | Z125: 8 | AA125: 0 | AB125: 0
H126: 20 | I126: 0 | J126: 0 | K126: 0 | L126: 0 | M126: 5 | N126: 0 | O126: 0 | P126: 0 | Q126: 0 | R126: 0 | S126: 0 | T126: 0 | U126: 18 | V126: 27 | W126: 0 | X126: 0 | Y126: 5 | Z126: 0 | AA126: 0 | AB126: 0
G127: avg 10 min | H127: 110 | I127: =SUM(I117:I126) -> 0 | J127: =SUM(J117:J126) -> 0 | K127: 11 | L127: 0 | M127: 5 | N127: 0 | O127: 0 | P127: 6 | Q127: 1 | R127: 36 | S127: 0 | T127: 16 | U127: 69 | V127: 71 | W127: 0 | X127: 0 | Y127: 10 | Z127: 140 | AA127: 0 | AB127: 0
H128: 21 | I128: 0 | J128: 0 | K128: 4 | L128: 0 | M128: 1 | N128: 0 | O128: 0 | P128: 0 | Q128: 0 | R128: 0 | S128: 0 | T128: 0 | U128: 30 | V128: 0 | W128: 0 | X128: 0 | Y128: 7 | Z128: 0 | AA128: 0 | AB128: 0
H129: 22 | I129: 0 | J129: 0 | K129: 4 | L129: 0 | M129: 0 | N129: 0 | O129: 0 | P129: 0 | Q129: 0 | R129: 0 | S129: 0 | T129: 1 | U129: 17 | V129: 6 | W129: 0 | X129: 0 | Y129: 18 | Z129: 0 | AA129: 0 | AB129: 0
H130: 23 | I130: 0 | J130: 0 | K130: 2 | L130: 0 | M130: 0 | N130: 0 | O130: 0 | P130: 0 | Q130: 0 | R130: 0 | S130: 0 | T130: 0 | U130: 1 | V130: 21 | W130: 0 | X130: 0 | Y130: 4 | Z130: 0 | AA130: 0 | AB130: 0
H131: 24 | I131: 0 | J131: 0 | K131: 8 | L131: 0 | M131: 0 | N131: 0 | O131: 0 | P131: 0 | Q131: 0 | R131: 0 | S131: 0 | T131: 1 | U131: 0 | V131: 0 | W131: 0 | X131: 0 | Y131: 2 | Z131: 0 | AA131: 0 | AB131: 0
H132: 25 | I132: 0 | J132: 0 | K132: 6 | L132: 0 | M132: 0 | N132: 0 | O132: 0 | P132: 0 | Q132: 0 | R132: 0 | S132: 0 | T132: 3 | U132: 0 | V132: 3 | W132: 0 | X132: 0 | Y132: 4 | Z132: 0 | AA132: 0 | AB132: 0
H133: 26 | I133: 0 | J133: 0 | K133: 5 | L133: 0 | M133: 0 | N133: 0 | O133: 0 | P133: 0 | Q133: 0 | R133: 6 | S133: 0 | T133: 55 | U133: 0 | V133: 0 | W133: 0 | X133: 0 | Y133: 6 | Z133: 0 | AA133: 0 | AB133: 0
H134: 27 | I134: 0 | J134: 0 | K134: 4 | L134: 0 | M134: 0 | N134: 0 | O134: 0 | P134: 0 | Q134: 0 | R134: 14 | S134: 0 | T134: 33 | U134: 0 | V134: 0 | W134: 0 | X134: 0 | Y134: 7 | Z134: 0 | AA134: 0 | AB134: 0
H135: 28 | I135: 0 | J135: 0 | K135: 7 | L135: 0 | M135: 0 | N135: 0 | O135: 0 | P135: 0 | Q135: 0 | R135: 1 | S135: 0 | T135: 5 | U135: 0 | V135: 0 | W135: 0 | X135: 0 | Y135: 1 | Z135: 0 | AA135: 0 | AB135: 0
H136: 29 | I136: 0 | J136: 0 | K136: 0 | L136: 0 | M136: 0 | N136: 0 | O136: 0 | P136: 0 | Q136: 0 | R136: 0 | S136: 0 | T136: 11 | U136: 0 | V136: 0 | W136: 0 | X136: 0 | Y136: 3 | Z136: 0 | AA136: 0 | AB136: 0
H137: 30 | I137: 0 | J137: 0 | K137: 4 | L137: 0 | M137: 0 | N137: 0 | O137: 0 | P137: 0 | Q137: 0 | R137: 0 | S137: 0 | T137: 15 | U137: 0 | V137: 0 | W137: 0 | X137: 0 | Y137: 13 | Z137: 0 | AA137: 0 | AB137: 0
G138: avg 10 min | H138: 120 | I138: =SUM(I128:I137) -> 0 | J138: =SUM(J128:J137) -> 0 | K138: 44 | L138: 0 | M138: 1 | N138: 0 | O138: 0 | P138: 0 | Q138: 0 | R138: 21 | S138: 0 | T138: 124 | U138: 48 | V138: 30 | W138: 0 | X138: 0 | Y138: 65 | Z138: 0 | AA138: 0 | AB138: 0
H139: 0 | I139: 0 | J139: 0 | K139: 14 | L139: 0 | M139: 0 | N139: 0 | O139: 0 | P139: 0 | Q139: 0 | R139: 0 | S139: 0 | T139: 7 | U139: 0 | V139: 0 | W139: 0 | X139: 0 | Y139: 0 | Z139: 0 | AA139: 0 | AB139: 0
H140: 1 | I140: 0 | J140: 0 | K140: 0 | L140: 0 | M140: 18 | N140: 0 | O140: 0 | P140: 0 | Q140: 0 | R140: 0 | S140: 0 | T140: 24 | U140: 0 | V140: 0 | W140: 0 | X140: 0 | Y140: 6 | Z140: 0 | AA140: 0 | AB140: 0
H141: 2 | I141: 0 | J141: 0 | K141: 0 | L141: 0 | M141: 3 | N141: 0 | O141: 0 | P141: 0 | Q141: 0 | R141: 0 | S141: 0 | T141: 0 | U141: 0 | V141: 0 | W141: 0 | X141: 0 | Y141: 0 | Z141: 0 | AA141: 0 | AB141: 0
H142: 3 | I142: 0 | J142: 0 | K142: 9 | L142: 0 | M142: 0 | N142: 0 | O142: 0 | P142: 0 | Q142: 0 | R142: 0 | S142: 0 | T142: 2 | U142: 0 | V142: 0 | W142: 0 | X142: 0 | Y142: 0 | Z142: 0 | AA142: 0 | AB142: 0
H143: 4 | I143: 0 | J143: 0 | K143: 7 | L143: 0 | M143: 1 | N143: 0 | O143: 0 | P143: 0 | Q143: 0 | R143: 0 | S143: 0 | T143: 0 | U143: 0 | V143: 0 | W143: 0 | X143: 0 | Y143: 1 | Z143: 0 | AA143: 0 | AB143: 0
H144: 5 | I144: 0 | J144: 0 | K144: 32 | L144: 0 | M144: 2 | N144: 1 | O144: 0 | P144: 0 | Q144: 0 | R144: 0 | S144: 0 | T144: 0 | U144: 0 | V144: 0 | W144: 0 | X144: 0 | Y144: 3 | Z144: 0 | AA144: 0 | AB144: 0
H145: 6 | I145: 1 | J145: 0 | K145: 21 | L145: 0 | M145: 4 | N145: 0 | O145: 0 | P145: 0 | Q145: 0 | R145: 0 | S145: 0 | T145: 0 | U145: 0 | V145: 0 | W145: 0 | X145: 0 | Y145: 0 | Z145: 0 | AA145: 0 | AB145: 0
H146: 7 | I146: 0 | J146: 0 | K146: 19 | L146: 0 | M146: 15 | N146: 0 | O146: 0 | P146: 0 | Q146: 0 | R146: 0 | S146: 0 | T146: 0 | U146: 0 | V146: 0 | W146: 0 | X146: 0 | Y146: 0 | Z146: 0 | AA146: 0 | AB146: 0
H147: 8 | I147: 0 | J147: 0 | K147: 14 | L147: 0 | M147: 6 | N147: 0 | O147: 0 | P147: 0 | Q147: 0 | R147: 0 | S147: 0 | T147: 0 | U147: 0 | V147: 0 | W147: 0 | X147: 0 | Y147: 0 | Z147: 8 | AA147: 0 | AB147: 0
H148: 9 | I148: 0 | J148: 1 | K148: 4 | L148: 0 | M148: 10 | N148: 0 | O148: 0 | P148: 0 | Q148: 0 | R148: 0 | S148: 0 | T148: 0 | U148: 0 | V148: 0 | W148: 0 | X148: 0 | Y148: 0 | Z148: 2 | AA148: 0 | AB148: 0
H149: 10 | I149: 0 | J149: 0 | K149: 9 | L149: 0 | M149: 7 | N149: 0 | O149: 0 | P149: 0 | Q149: 0 | R149: 0 | S149: 0 | T149: 0 | U149: 0 | V149: 0 | W149: 0 | X149: 0 | Y149: 0 | Z149: 7 | AA149: 0 | AB149: 0
G150: avg 10 min | H150: 130 | I150: =SUM(I139:I149) -> 1 | J150: =SUM(J139:J149) -> 1 | K150: 129 | L150: 0 | M150: 66 | N150: 1 | O150: 0 | P150: 0 | Q150: 0 | R150: 0 | S150: 0 | T150: 33 | U150: 0 | V150: 0 | W150: 0 | X150: 0 | Y150: 10 | Z150: 17 | AA150: 0 | AB150: 0
H151: 11 | I151: 0 | J151: 0 | K151: 0 | L151: 0 | M151: 0 | N151: 0 | O151: 0 | P151: 0 | Q151: 0 | R151: 0 | S151: 0 | T151: 0 | U151: 0 | V151: 0 | W151: 3 | X151: 0 | Y151: 0 | Z151: 0 | AA151: 0 | AB151: 0
H152: 12 | I152: 0 | J152: 0 | K152: 1 | L152: 0 | M152: 12 | N152: 0 | O152: 0 | P152: 0 | Q152: 0 | R152: 0 | S152: 0 | T152: 0 | U152: 0 | V152: 0 | W152: 0 | X152: 0 | Y152: 0 | Z152: 0 | AA152: 0 | AB152: 0
H153: 13 | I153: 0 | J153: 0 | K153: 15 | L153: 0 | M153: 20 | N153: 0 | O153: 0 | P153: 0 | Q153: 0 | R153: 0 | S153: 0 | T153: 0 | U153: 0 | V153: 0 | W153: 0 | X153: 0 | Y153: 0 | Z153: 0 | AA153: 0 | AB153: 0
H154: 14 | I154: 0 | J154: 0 | K154: 1 | L154: 0 | M154: 38 | N154: 0 | O154: 0 | P154: 0 | Q154: 0 | R154: 0 | S154: 0 | T154: 0 | U154: 0 | V154: 7 | W154: 0 | X154: 0 | Y154: 0 | Z154: 0 | AA154: 0 | AB154: 0
H155: 15 | I155: 0 | J155: 0 | K155: 4 | L155: 0 | M155: 12 | N155: 0 | O155: 0 | P155: 0 | Q155: 0 | R155: 0 | S155: 0 | T155: 0 | U155: 0 | V155: 15 | W155: 0 | X155: 0 | Y155: 0 | Z155: 0 | AA155: 0 | AB155: 0
H156: 16 | I156: 0 | J156: 0 | K156: 6 | L156: 4 | M156: 15 | N156: 0 | O156: 0 | P156: 0 | Q156: 0 | R156: 0 | S156: 0 | T156: 0 | U156: 0 | V156: 25 | W156: 0 | X156: 0 | Y156: 0 | Z156: 1 | AA156: 0 | AB156: 0
H157: 17 | I157: 0 | J157: 0 | K157: 0 | L157: 23 | M157: 33 | N157: 0 | O157: 0 | P157: 0 | Q157: 0 | R157: 0 | S157: 0 | T157: 0 | U157: 0 | V157: 24 | W157: 0 | X157: 0 | Y157: 0 | Z157: 2 | AA157: 0 | AB157: 0
H158: 18 | I158: 0 | J158: 0 | K158: 0 | L158: 15 | M158: 8 | N158: 0 | O158: 0 | P158: 0 | Q158: 0 | R158: 0 | S158: 0 | T158: 0 | U158: 0 | V158: 5 | W158: 0 | X158: 0 | Y158: 0 | Z158: 0 | AA158: 0 | AB158: 0
H159: 19 | I159: 0 | J159: 0 | K159: 0 | L159: 0 | M159: 10 | N159: 0 | O159: 0 | P159: 0 | Q159: 0 | R159: 0 | S159: 0 | T159: 0 | U159: 0 | V159: 2 | W159: 0 | X159: 0 | Y159: 0 | Z159: 0 | AA159: 0 | AB159: 0
H160: 20 | I160: 0 | J160: 0 | K160: 0 | L160: 4 | M160: 0 | N160: 0 | O160: 0 | P160: 0 | Q160: 0 | R160: 0 | S160: 0 | T160: 0 | U160: 0 | V160: 12 | W160: 0 | X160: 0 | Y160: 0 | Z160: 2 | AA160: 0 | AB160: 0
G161: avg 10 min | H161: 140 | I161: =SUM(I151:I160) -> 0 | J161: =SUM(J151:J160) -> 0 | K161: 27 | L161: 46 | M161: 148 | N161: 0 | O161: 0 | P161: 0 | Q161: 0 | R161: 0 | S161: 0 | T161: 0 | U161: 0 | V161: 90 | W161: 3 | X161: 0 | Y161: 0 | Z161: 5 | AA161: 0 | AB161: 0
H162: 21 | I162: 0 | J162: 0 | K162: 0 | L162: 26 | M162: 0 | N162: 0 | O162: 0 | P162: 0 | Q162: 0 | R162: 0 | S162: 0 | T162: 0 | U162: 0 | V162: 10 | W162: 0 | X162: 0 | Y162: 0 | Z162: 0 | AA162: 0 | AB162: 0
H163: 22 | I163: 0 | J163: 3 | K163: 0 | L163: 0 | M163: 0 | N163: 0 | O163: 0 | P163: 0 | Q163: 0 | R163: 0 | S163: 0 | T163: 0 | U163: 0 | V163: 6 | W163: 0 | X163: 0 | Y163: 0 | Z163: 2 | AA163: 0 | AB163: 0
H164: 23 | I164: 0 | J164: 0 | K164: 0 | L164: 4 | M164: 0 | N164: 0 | O164: 0 | P164: 0 | Q164: 0 | R164: 0 | S164: 0 | T164: 0 | U164: 0 | V164: 2 | W164: 0 | X164: 0 | Y164: 0 | Z164: 11 | AA164: 0 | AB164: 0
H165: 24 | I165: 0 | J165: 0 | K165: 0 | L165: 18 | M165: 0 | N165: 0 | O165: 0 | P165: 0 | Q165: 0 | R165: 0 | S165: 0 | T165: 0 | U165: 0 | V165: 1 | W165: 0 | X165: 1 | Y165: 0 | Z165: 0 | AA165: 0 | AB165: 0
H166: 25 | I166: 0 | J166: 0 | K166: 0 | L166: 0 | M166: 0 | N166: 0 | O166: 0 | P166: 0 | Q166: 0 | R166: 0 | S166: 0 | T166: 0 | U166: 0 | V166: 0 | W166: 0 | X166: 0 | Y166: 0 | Z166: 0 | AA166: 0 | AB166: 0
H167: 26 | I167: 0 | J167: 0 | K167: 0 | L167: 12 | M167: 0 | N167: 0 | O167: 0 | P167: 0 | Q167: 0 | R167: 0 | S167: 0 | T167: 0 | U167: 0 | V167: 1 | W167: 0 | X167: 0 | Y167: 0 | Z167: 0 | AA167: 0 | AB167: 0
H168: 27 | I168: 0 | J168: 0 | K168: 0 | L168: 5 | M168: 0 | N168: 0 | O168: 0 | P168: 0 | Q168: 0 | R168: 0 | S168: 0 | T168: 0 | U168: 0 | V168: 0 | W168: 0 | X168: 0 | Y168: 0 | Z168: 0 | AA168: 0 | AB168: 0
H169: 28 | I169: 0 | J169: 0 | K169: 0 | L169: 17 | M169: 0 | N169: 0 | O169: 0 | P169: 0 | Q169: 0 | R169: 0 | S169: 0 | T169: 0 | U169: 0 | V169: 0 | W169: 0 | X169: 0 | Y169: 0 | Z169: 0 | AA169: 0 | AB169: 0
H170: 29 | I170: 0 | J170: 0 | K170: 0 | L170: 17 | M170: 0 | N170: 0 | O170: 0 | P170: 0 | Q170: 0 | R170: 0 | S170: 0 | T170: 0 | U170: 0 | V170: 0 | W170: 0 | X170: 0 | Y170: 6 | Z170: 3 | AA170: 0 | AB170: 0
H171: 30 | I171: 0 | J171: 0 | K171: 0 | L171: 28 | M171: 0 | N171: 0 | O171: 0 | P171: 0 | Q171: 0 | R171: 0 | S171: 0 | T171: 0 | U171: 0 | V171: 1 | W171: 0 | X171: 0 | Y171: 6 | Z171: 0 | AA171: 0 | AB171: 0
G172: avg 10 min | H172: 150 | I172: =SUM(I162:I171) -> 0 | J172: =SUM(J162:J171) -> 3 | K172: 0 | L172: 127 | M172: 0 | N172: 0 | O172: 0 | P172: 0 | Q172: 0 | R172: 0 | S172: 0 | T172: 0 | U172: 0 | V172: 21 | W172: 0 | X172: 1 | Y172: 12 | Z172: 16 | AA172: 0 | AB172: 0
H173: 0 | I173: 0 | J173: 0 | K173: 0 | L173: 5 | M173: 0 | N173: 0 | O173: 0 | P173: 0 | Q173: 0 | R173: 0 | S173: 0 | T173: 0 | U173: 0 | V173: 0 | W173: 0 | X173: 0 | Y173: 17 | Z173: 0 | AA173: 0 | AB173: 0
H174: 1 | I174: 0 | J174: 0 | K174: 0 | L174: 21 | M174: 0 | N174: 0 | O174: 2 | P174: 0 | Q174: 0 | R174: 0 | S174: 0 | T174: 0 | U174: 0 | V174: 0 | W174: 0 | X174: 0 | Y174: 4 | Z174: 5 | AA174: 0 | AB174: 0
H175: 2 | I175: 0 | J175: 0 | K175: 0 | L175: 0 | M175: 0 | N175: 0 | O175: 0 | P175: 0 | Q175: 0 | R175: 0 | S175: 1 | T175: 0 | U175: 0 | V175: 0 | W175: 0 | X175: 0 | Y175: 0 | Z175: 1 | AA175: 0 | AB175: 0
H176: 3 | I176: 0 | J176: 0 | K176: 0 | L176: 3 | M176: 0 | N176: 0 | O176: 1 | P176: 0 | Q176: 0 | R176: 0 | S176: 0 | T176: 0 | U176: 0 | V176: 0 | W176: 0 | X176: 0 | Y176: 0 | Z176: 0 | AA176: 0 | AB176: 0
H177: 4 | I177: 0 | J177: 0 | K177: 0 | L177: 0 | M177: 0 | N177: 0 | O177: 0 | P177: 0 | Q177: 0 | R177: 0 | S177: 0 | T177: 0 | U177: 0 | V177: 4 | W177: 0 | X177: 0 | Y177: 0 | Z177: 0 | AA177: 0 | AB177: 0
H178: 5 | I178: 0 | J178: 0 | K178: 0 | L178: 0 | M178: 0 | N178: 0 | O178: 0 | P178: 0 | Q178: 1 | R178: 0 | S178: 0 | T178: 0 | U178: 0 | V178: 0 | W178: 0 | X178: 0 | Y178: 24 | Z178: 0 | AA178: 0 | AB178: 0
H179: 6 | I179: 0 | J179: 0 | K179: 0 | L179: 0 | M179: 0 | N179: 0 | O179: 0 | P179: 0 | Q179: 3 | R179: 0 | S179: 0 | T179: 0 | U179: 0 | V179: 3 | W179: 0 | X179: 0 | Y179: 13 | Z179: 7 | AA179: 0 | AB179: 0
H180: 7 | I180: 0 | J180: 0 | K180: 0 | L180: 3 | M180: 0 | N180: 0 | O180: 0 | P180: 0 | Q180: 3 | R180: 0 | S180: 0 | T180: 0 | U180: 0 | V180: 6 | W180: 0 | X180: 0 | Y180: 19 | Z180: 5 | AA180: 0 | AB180: 0
H181: 8 | I181: 0 | J181: 0 | K181: 0 | L181: 0 | M181: 0 | N181: 0 | O181: 0 | P181: 4 | Q181: 1 | R181: 0 | S181: 0 | T181: 0 | U181: 0 | V181: 4 | W181: 0 | X181: 0 | Y181: 32 | Z181: 3 | AA181: 0 | AB181: 0
H182: 9 | I182: 0 | J182: 0 | K182: 0 | L182: 3 | M182: 0 | N182: 8 | O182: 0 | P182: 0 | Q182: 0 | R182: 0 | S182: 0 | T182: 0 | U182: 0 | V182: 3 | W182: 0 | X182: 0 | Y182: 7 | Z182: 7 | AA182: 0 | AB182: 0
H183: 10 | I183: 0 | J183: 0 | K183: 0 | L183: 2 | M183: 0 | N183: 0 | O183: 7 | P183: 0 | Q183: 0 | R183: 0 | S183: 0 | T183: 0 | U183: 0 | V183: 0 | W183: 0 | X183: 0 | Y183: 8 | Z183: 29 | AA183: 0 | AB183: 0
G184: avg 10 min | H184: 160 | I184: =SUM(I173:I183) -> 0 | J184: =SUM(J173:J183) -> 0 | K184: 0 | L184: 37 | M184: 0 | N184: 8 | O184: 10 | P184: 4 | Q184: 8 | R184: 0 | S184: 1 | T184: 0 | U184: 0 | V184: 20 | W184: 0 | X184: 0 | Y184: 124 | Z184: 57 | AA184: 0 | AB184: 0
H185: 11 | I185: 0 | J185: 0 | K185: 0 | L185: 0 | M185: 0 | N185: 0 | O185: 4 | P185: 0 | Q185: 0 | R185: 0 | S185: 0 | T185: 0 | U185: 11 | V185: 4 | W185: 0 | X185: 0 | Y185: 0 | Z185: 7 | AA185: 0 | AB185: 0
H186: 12 | I186: 0 | J186: 0 | K186: 0 | L186: 1 | M186: 0 | N186: 0 | O186: 0 | P186: 0 | Q186: 1 | R186: 0 | S186: 1 | T186: 0 | U186: 17 | V186: 5 | W186: 0 | X186: 0 | Y186: 4 | Z186: 0 | AA186: 0 | AB186: 0
H187: 13 | I187: 0 | J187: 0 | K187: 0 | L187: 0 | M187: 0 | N187: 0 | O187: 0 | P187: 0 | Q187: 0 | R187: 0 | S187: 0 | T187: 0 | U187: 7 | V187: 3 | W187: 0 | X187: 0 | Y187: 10 | Z187: 0 | AA187: 0 | AB187: 0
H188: 14 | I188: 0 | J188: 0 | K188: 0 | L188: 0 | M188: 0 | N188: 1 | O188: 40 | P188: 0 | Q188: 0 | R188: 0 | S188: 1 | T188: 0 | U188: 6 | V188: 4 | W188: 0 | X188: 0 | Y188: 5 | Z188: 0 | AA188: 0 | AB188: 0
H189: 15 | I189: 0 | J189: 0 | K189: 0 | L189: 0 | M189: 0 | N189: 0 | O189: 16 | P189: 0 | Q189: 0 | R189: 0 | S189: 0 | T189: 0 | U189: 26 | V189: 0 | W189: 0 | X189: 0 | Y189: 8 | Z189: 0 | AA189: 0 | AB189: 0
H190: 16 | I190: 0 | J190: 0 | K190: 0 | L190: 0 | M190: 0 | N190: 0 | O190: 6 | P190: 0 | Q190: 0 | R190: 0 | S190: 0 | T190: 0 | U190: 20 | V190: 0 | W190: 0 | X190: 0 | Y190: 6 | Z190: 0 | AA190: 0 | AB190: 0
H191: 17 | I191: 0 | J191: 0 | K191: 0 | L191: 0 | M191: 0 | N191: 0 | O191: 0 | P191: 0 | Q191: 0 | R191: 0 | S191: 0 | T191: 0 | U191: 32 | V191: 0 | W191: 0 | X191: 0 | Y191: 5 | Z191: 0 | AA191: 0 | AB191: 0
H192: 18 | I192: 0 | J192: 0 | K192: 0 | L192: 0 | M192: 0 | N192: 0 | O192: 12 | P192: 0 | Q192: 0 | R192: 0 | S192: 0 | T192: 0 | U192: 9 | V192: 0 | W192: 0 | X192: 0 | Y192: 20 | Z192: 0 | AA192: 0 | AB192: 0
H193: 19 | I193: 0 | J193: 0 | K193: 0 | L193: 0 | M193: 30 | N193: 0 | O193: 0 | P193: 0 | Q193: 0 | R193: 0 | S193: 0 | T193: 0 | U193: 21 | V193: 0 | W193: 0 | X193: 0 | Y193: 0 | Z193: 3 | AA193: 0 | AB193: 0
H194: 20 | I194: 0 | J194: 0 | K194: 0 | L194: 1 | M194: 0 | N194: 0 | O194: 1 | P194: 2 | Q194: 0 | R194: 0 | S194: 0 | T194: 0 | U194: 8 | V194: 0 | W194: 0 | X194: 0 | Y194: 38 | Z194: 0 | AA194: 0 | AB194: 0
G195: avg 10 min | H195: 170 | I195: =SUM(I185:I194) -> 0 | J195: =SUM(J185:J194) -> 0 | K195: 0 | L195: 2 | M195: 30 | N195: 1 | O195: 79 | P195: 2 | Q195: 1 | R195: 0 | S195: 2 | T195: 0 | U195: 157 | V195: 16 | W195: 0 | X195: 0 | Y195: 96 | Z195: 10 | AA195: 0 | AB195: 0
H196: 21 | I196: 0 | J196: 0 | K196: 0 | L196: 0 | M196: 0 | N196: 0 | O196: 2 | P196: 0 | Q196: 0 | R196: 0 | S196: 0 | T196: 0 | U196: 10 | V196: 0 | W196: 0 | X196: 0 | Y196: 29 | Z196: 13 | AA196: 0 | AB196: 0
H197: 22 | I197: 0 | J197: 0 | K197: 0 | L197: 0 | M197: 9 | N197: 0 | O197: 2 | P197: 0 | Q197: 0 | R197: 0 | S197: 0 | T197: 0 | U197: 0 | V197: 0 | W197: 0 | X197: 0 | Y197: 15 | Z197: 24 | AA197: 0 | AB197: 0
H198: 23 | I198: 0 | J198: 0 | K198: 0 | L198: 0 | M198: 34 | N198: 0 | O198: 0 | P198: 0 | Q198: 0 | R198: 0 | S198: 0 | T198: 0 | U198: 6 | V198: 0 | W198: 0 | X198: 0 | Y198: 0 | Z198: 0 | AA198: 0 | AB198: 0
H199: 24 | I199: 0 | J199: 0 | K199: 0 | L199: 0 | M199: 0 | N199: 0 | O199: 0 | P199: 0 | Q199: 0 | R199: 0 | S199: 0 | T199: 0 | U199: 0 | V199: 0 | W199: 0 | X199: 0 | Y199: 8 | Z199: 9 | AA199: 0 | AB199: 0
H200: 25 | I200: 0 | J200: 3 | K200: 0 | L200: 1 | M200: 23 | N200: 0 | O200: 37 | P200: 0 | Q200: 0 | R200: 0 | S200: 0 | T200: 0 | U200: 1 | V200: 0 | W200: 0 | X200: 0 | Y200: 14 | Z200: 15 | AA200: 0 | AB200: 0
H201: 26 | I201: 0 | J201: 0 | K201: 0 | L201: 6 | M201: 28 | N201: 0 | O201: 24 | P201: 0 | Q201: 0 | R201: 0 | S201: 0 | T201: 0 | U201: 9 | V201: 0 | W201: 0 | X201: 0 | Y201: 30 | Z201: 9 | AA201: 0 | AB201: 0
... 39 more rows

Sheet 8a right graph
B2: V | C2: D
B3: 640 | C3: 13
B4: 438 | C4: 23
B5: 555 | C5: 22
B6: 353 | C6: 20
B7: 280 | C7: 20
B8: 389 | C8: 3
B9: 563 | C9: 14
B10: 492 | C10: 10
B11: 1088 | C11: 143
B12: 498 | C12: 9
A14: avg | B14: =AVERAGE(B3:B12) -> 529.6 | C14: =AVERAGE(C3:C12) -> 27.7
A15: SEM | B15: =STDEV(B3:B12)/SQRT(COUNT(B3:B12)) -> 70.69640884 | C15: =STDEV(C3:C12)/SQRT(COUNT(C3:C12)) -> 12.97180704

Sheet 8b
A1: C57BL/6 mice_dry skin model
A4: total number of scratching bouts
A5: mouse 1 | B5: Vehicle | C5: TPA023B
A6: 1 | B6: 93 | C6: 50
A7: 2 | B7: 284 | C7: 66
A8: 3 | B8: 127 | C8: 26
A9: 4 | B9: 173 | C9: 48
A10: 5 | B10: 113 | C10: 8
A11: 6 | B11: 173 | C11: 48
A12: avg | B12: =AVERAGE(B6:B11) -> 160.5 | C12: =AVERAGE(C6:C11) -> 41
A13: SEM | B13: =STDEV(B6:B11)/SQRT(6) -> 27.98779496 | C13: =STDEV(C6:C11)/SQRT(6) -> 8.402380615

Sheet 8c left graph
B2: v/v | D2: v/d | F2: d/v | H2: d/d | K2: treat | L2: v/v | M2: v/d | N2: v/v | O2: v/v | P2: v/d | Q2: v/d | R2: d/v | S2: d/v | T2: d/d | U2: d/d | V2: d/d | W2: d/v | X2: d/d | Y2: d/v | Z2: v/d | AA2: v/v | AB2: v/d | AC2: v/v | AD2: d/v | AE2: d/v | AF2: d/d | AG2: d/d
A3: 10 | B3: 8.2 | C3: 3.59722115 | D3: 12.6 | E3: 5.153639491 | F3: 21.66666667 | G3: 15.05028608 | H3: 7.166666667 | I3: 5.594143763 | K3: mosue: | N3: 1 | O3: 2 | P3: 3 | Q3: 4 | R3: 5 | S3: 6 | T3: 7 | U3: 8 | V3: 9 | W3: 10 | X3: 11 | Y3: 12 | Z3: 13 | AA3: 14 | AB3: 15 | AC3: 16 | AD3: 17 | AE3: 18 | AF3: 19 | AG3: 20 | AJ3: =L2 -> v/v | AK3: v/d | AL3: v/v | AM3: v/v | AN3: v/d | AO3: v/d | AP3: d/v | AQ3: d/v | AR3: d/d | AS3: d/d | AT3: d/d | AU3: d/v | AV3: d/d | AW3: d/v | AX3: v/d | AY3: v/v | AZ3: v/d | BA3: v/v | BB3: d/v | BC3: d/v | BD3: d/d | BE3: d/d
A4: 20 | B4: 16.2 | C4: 9.096153033 | D4: 2.2 | E4: 1.319090596 | F4: 53.83333333 | G4: 22.42828076 | H4: 4 | I4: 3.204163958 | AI4: =K16 -> 10 | AJ4: =L16 -> 19 | AK4: 28 | AL4: 1 | AM4: 1 | AN4: 6 | AO4: 8 | AP4: 26 | AQ4: 0 | AR4: 35 | AS4: 3 | AT4: 0 | AU4: 0 | AV4: 0 | AW4: 10 | AX4: 0 | AY4: 14 | AZ4: 21 | BA4: 6 | BB4: 94 | BC4: 0 | BD4: 2 | BE4: 3
A5: 30 | B5: 14.8 | C5: 10.79536938 | D5: 0.4 | E5: 0.2449489743 | F5: 9.666666667 | G5: 4.7656176 | H5: 3.333333333 | I5: 2.216102685 | K5: 0 | L5: 0 | M5: 7 | N5: 0 | O5: 1 | P5: 2 | Q5: 0 | R5: 0 | S5: 0 | T5: 3 | U5: 0 | V5: 0 | W5: 0 | X5: 0 | Y5: 0 | Z5: 0 | AA5: 14 | AB5: 0 | AC5: 0 | AD5: 0 | AE5: 0 | AF5: 1 | AG5: 0 | AI5: =K27 -> 20 | AJ5: =L27 -> 49 | AK5: 3 | AL5: 1 | AM5: 22 | AN5: 1 | AO5: 7 | AP5: 18 | AQ5: 0 | AR5: 20 | AS5: 1 | AT5: 1 | AU5: 44 | AV5: 1 | AW5: 113 | AX5: 0 | AY5: 9 | AZ5: 0 | BA5: 0 | BB5: 131 | BC5: 17 | BD5: 1 | BE5: 0
A6: 40 | B6: 15.4 | C6: 9.657121724 | D6: 1.8 | E6: 1.8 | F6: 0 | G6: 0 | H6: 1 | I6: 1 | K6: 1 | L6: 6 | M6: 0 | N6: 0 | O6: 0 | P6: 0 | Q6: 0 | R6: 0 | S6: 0 | T6: 0 | U6: 0 | V6: 0 | W6: 0 | X6: 0 | Y6: 0 | Z6: 0 | AA6: 0 | AB6: 0 | AC6: 0 | AD6: 0 | AE6: 0 | AF6: 1 | AG6: 0 | AI6: =K38 -> 30 | AJ6: =L38 -> 0 | AK6: 0 | AL6: 17 | AM6: 56 | AN6: 0 | AO6: 1 | AP6: 7 | AQ6: 0 | AR6: 4 | AS6: 1 | AT6: 0 | AU6: 31 | AV6: 1 | AW6: 14 | AX6: 1 | AY6: 1 | AZ6: 0 | BA6: 0 | BB6: 0 | BC6: 6 | BD6: 0 | BE6: 14
A7: 50 | B7: 0 | C7: 0 | D7: 1.2 | E7: 1.2 | F7: 3.166666667 | G7: 3.166666667 | H7: 1.333333333 | I7: 1.333333333 | K7: 2 | L7: 1 | M7: 1 | N7: 0 | O7: 0 | P7: 0 | Q7: 0 | R7: 0 | S7: 0 | T7: 2 | U7: 1 | V7: 0 | W7: 0 | X7: 0 | Y7: 0 | Z7: 0 | AA7: 0 | AB7: 20 | AC7: 0 | AD7: 13 | AE7: 0 | AF7: 0 | AG7: 0 | AI7: =K50 -> 40 | AJ7: =L50 -> 0 | AK7: 0 | AL7: 1 | AM7: 47 | AN7: 0 | AO7: 9 | AP7: 0 | AQ7: 0 | AR7: 0 | AS7: 0 | AT7: 0 | AU7: 0 | AV7: 0 | AW7: 0 | AX7: 0 | AY7: 0 | AZ7: 0 | BA7: 29 | BB7: 0 | BC7: 0 | BD7: 6 | BE7: 0
A8: 60 | B8: 2.2 | C8: 2.2 | D8: 1.4 | E8: 0.6782329983 | F8: 0 | G8: 0 | H8: 3.666666667 | I8: 3.272783389 | K8: 3 | L8: 0 | M8: 0 | N8: 1 | O8: 0 | P8: 1 | Q8: 0 | R8: 5 | S8: 0 | T8: 6 | U8: 0 | V8: 0 | W8: 0 | X8: 0 | Y8: 0 | Z8: 0 | AA8: 0 | AB8: 1 | AC8: 0 | AD8: 2 | AE8: 0 | AF8: 0 | AG8: 3 | AI8: =K61 -> 50 | AJ8: =L61 -> 0 | AK8: 0 | AL8: 0 | AM8: 0 | AN8: 0 | AO8: 6 | AP8: 19 | AQ8: 0 | AR8: 0 | AS8: 8 | AT8: 0 | AU8: 0 | AV8: 0 | AW8: 0 | AX8: 0 | AY8: 0 | AZ8: 0 | BA8: 0 | BB8: 0 | BC8: 0 | BD8: 0 | BE8: 0
A9: 70 | B9: 1.2 | C9: 0.8 | D9: 3.8 | E9: 3.555277767 | F9: 3.666666667 | G9: 2.905932629 | H9: 3.166666667 | I9: 3.166666667 | K9: 4 | L9: 2 | M9: 1 | N9: 0 | O9: 0 | P9: 0 | Q9: 0 | R9: 0 | S9: 0 | T9: 2 | U9: 0 | V9: 0 | W9: 0 | X9: 0 | Y9: 0 | Z9: 0 | AA9: 0 | AB9: 0 | AC9: 0 | AD9: 3 | AE9: 0 | AF9: 0 | AG9: 0 | AI9: =K72 -> 60 | AJ9: =L72 -> 0 | AK9: 0 | AL9: 0 | AM9: 0 | AN9: 1 | AO9: 0 | AP9: 0 | AQ9: 0 | AR9: 1 | AS9: 20 | AT9: 1 | AU9: 0 | AV9: 0 | AW9: 0 | AX9: 3 | AY9: 11 | AZ9: 3 | BA9: 0 | BB9: 0 | BC9: 0 | BD9: 0 | BE9: 0
A10: 80 | B10: 14.8 | C10: 8.57554663 | D10: 0.4 | E10: 0.2449489743 | F10: 33.5 | G10: 20.01790865 | H10: 3.166666667 | I10: 3.166666667 | K10: 5 | L10: 0 | M10: 1 | N10: 0 | O10: 0 | P10: 1 | Q10: 0 | R10: 0 | S10: 0 | T10: 0 | U10: 2 | V10: 0 | W10: 0 | X10: 0 | Y10: 0 | Z10: 0 | AA10: 0 | AB10: 0 | AC10: 6 | AD10: 13 | AE10: 0 | AF10: 0 | AG10: 0 | AI10: =K84 -> 70 | AJ10: =L84 -> 0 | AK10: 0 | AL10: 0 | AM10: 2 | AN10: 18 | AO10: 1 | AP10: 1 | AQ10: 3 | AR10: 19 | AS10: 0 | AT10: 0 | AU10: 0 | AV10: 0 | AW10: 0 | AX10: 0 | AY10: 4 | AZ10: 0 | BA10: 0 | BB10: 0 | BC10: 18 | BD10: 0 | BE10: 0
A11: 90 | B11: 35.4 | C11: 9.019977827 | D11: 0.8 | E11: 0.3741657387 | F11: 41 | G11: 26.16613588 | H11: 1.666666667 | I11: 1.475729575 | K11: 6 | L11: 0 | M11: 7 | N11: 0 | O11: 0 | P11: 0 | Q11: 0 | R11: 0 | S11: 0 | T11: 4 | U11: 0 | V11: 0 | W11: 0 | X11: 0 | Y11: 0 | Z11: 0 | AA11: 0 | AB11: 0 | AC11: 0 | AD11: 9 | AE11: 0 | AF11: 0 | AG11: 0 | AI11: =K95 -> 80 | AJ11: =L95 -> 1 | AK11: 0 | AL11: 47 | AM11: 16 | AN11: 0 | AO11: 1 | AP11: 127 | AQ11: 24 | AR11: 19 | AS11: 0 | AT11: 0 | AU11: 5 | AV11: 0 | AW11: 0 | AX11: 1 | AY11: 0 | AZ11: 0 | BA11: 10 | BB11: 0 | BC11: 45 | BD11: 0 | BE11: 0
A12: 100 | B12: 53.4 | C12: 30.28630053 | D12: 0.6 | E12: 0.6 | F12: 4.833333333 | G12: 4.636210138 | H12: 0.8333333333 | I12: 0.5426273532 | K12: 7 | L12: 10 | M12: 4 | N12: 0 | O12: 0 | P12: 0 | Q12: 0 | R12: 0 | S12: 0 | T12: 1 | U12: 0 | V12: 0 | W12: 0 | X12: 0 | Y12: 0 | Z12: 0 | AA12: 0 | AB12: 0 | AC12: 0 | AD12: 14 | AE12: 0 | AF12: 0 | AG12: 0 | AI12: =K106 -> 90 | AJ12: =L106 -> 42 | AK12: 1 | AL12: 42 | AM12: 51 | AN12: 0 | AO12: 1 | AP12: 105 | AQ12: 140 | AR12: 0 | AS12: 0 | AT12: 1 | AU12: 0 | AV12: 9 | AW12: 0 | AX12: 0 | AY12: 0 | AZ12: 2 | BA12: 42 | BB12: 1 | BC12: 0 | BD12: 0 | BE12: 0
A13: 110 | B13: 3.8 | C13: 3.8 | D13: 0.2 | E13: 0.2 | F13: 45 | G13: 35.31855037 | H13: 1.833333333 | I13: 1.6414763 | K13: 8 | L13: 0 | M13: 5 | N13: 0 | O13: 0 | P13: 1 | Q13: 0 | R13: 6 | S13: 0 | T13: 2 | U13: 0 | V13: 0 | W13: 0 | X13: 0 | Y13: 4 | Z13: 0 | AA13: 0 | AB13: 0 | AC13: 0 | AD13: 2 | AE13: 0 | AF13: 0 | AG13: 0 | AI13: =K118 -> 100 | AJ13: =L118 -> 163 | AK13: 0 | AL13: 0 | AM13: 72 | AN13: 0 | AO13: 0 | AP13: 1 | AQ13: 28 | AR13: 0 | AS13: 0 | AT13: 2 | AU13: 0 | AV13: 0 | AW13: 0 | AX13: 3 | AY13: 3 | AZ13: 0 | BA13: 29 | BB13: 0 | BC13: 0 | BD13: 0 | BE13: 3
A14: 120 | B14: 7.4 | C14: 7.4 | D14: 0 | E14: 0 | F14: 86.5 | G14: 52.25179423 | H14: 0.3333333333 | I14: 0.3333333333 | K14: 9 | L14: 0 | M14: 2 | N14: 0 | O14: 0 | P14: 0 | Q14: 5 | R14: 15 | S14: 0 | T14: 6 | U14: 0 | V14: 0 | W14: 0 | X14: 0 | Y14: 4 | Z14: 0 | AA14: 0 | AB14: 0 | AC14: 0 | AD14: 19 | AE14: 0 | AF14: 0 | AG14: 0 | AI14: =K129 -> 110 | AJ14: =L129 -> 0 | AK14: 0 | AL14: 0 | AM14: 19 | AN14: 0 | AO14: 0 | AP14: 0 | AQ14: 216 | AR14: 0 | AS14: 1 | AT14: 10 | AU14: 0 | AV14: 0 | AW14: 54 | AX14: 0 | AY14: 0 | AZ14: 1 | BA14: 0 | BB14: 0 | BC14: 0 | BD14: 0 | BE14: 0
A15: 130 | B15: 12.6 | C15: 6.249799997 | D15: 1.2 | E15: 0.5830951895 | F15: 40.5 | G15: 12.55322004 | H15: 0.6666666667 | I15: 0.4944132325 | K15: 10 | L15: 0 | M15: 0 | N15: 0 | O15: 0 | P15: 1 | Q15: 3 | R15: 0 | S15: 0 | T15: 9 | U15: 0 | V15: 0 | W15: 0 | X15: 0 | Y15: 2 | Z15: 0 | AA15: 0 | AB15: 0 | AC15: 0 | AD15: 19 | AE15: 0 | AF15: 0 | AG15: 0 | AI15: =K140 -> 120 | AJ15: =L140 -> 0 | AK15: 0 | AL15: 0 | AM15: 0 | AN15: 0 | AO15: 0 | AP15: 0 | AQ15: 286 | AR15: 0 | AS15: 0 | AT15: 0 | AU15: 22 | AV15: 0 | AW15: 211 | AX15: 0 | AY15: 37 | AZ15: 0 | BA15: 0 | BB15: 0 | BC15: 0 | BD15: 2 | BE15: 0
A16: 140 | B16: 17 | C16: 10.67707825 | D16: 4 | E16: 3.521363372 | F16: 45.83333333 | G16: 30.57604364 | H16: 2.333333333 | I16: 2.333333333 | K16: 10 | L16: =SUM(L5:L15) -> 19 | M16: =SUM(M5:M15) -> 28 | N16: =SUM(N5:N15) -> 1 | O16: 1 | P16: 6 | Q16: 8 | R16: 26 | S16: 0 | T16: 35 | U16: 3 | V16: 0 | W16: 0 | X16: 0 | Y16: 10 | Z16: 0 | AA16: 14 | AB16: 21 | AC16: 6 | AD16: 94 | AE16: 0 | AF16: 2 | AG16: 3 | AI16: =K152 -> 130 | AJ16: =L152 -> 0 | AK16: 0 | AL16: 25 | AM16: 1 | AN16: 1 | AO16: 0 | AP16: 0 | AQ16: 68 | AR16: 0 | AS16: 3 | AT16: 0 | AU16: 51 | AV16: 1 | AW16: 52 | AX16: 2 | AY16: 30 | AZ16: 3 | BA16: 7 | BB16: 68 | BC16: 4 | BD16: 0 | BE16: 0
A17: 150 | B17: 13.4 | C17: 13.4 | D17: 2 | E17: 1.549193338 | F17: 12 | G17: 7.132087119 | H17: 1.5 | I17: 1.5 | K17: 11 | L17: 0 | M17: 0 | N17: 0 | O17: 0 | P17: 1 | Q17: 0 | R17: 0 | S17: 0 | T17: 1 | U17: 0 | V17: 0 | W17: 0 | X17: 0 | Y17: 0 | Z17: 0 | AA17: 0 | AB17: 0 | AC17: 0 | AD17: 18 | AE17: 0 | AF17: 1 | AG17: 0 | AI17: =K163 -> 140 | AJ17: =L163 -> 0 | AK17: 0 | AL17: 50 | AM17: 0 | AN17: 2 | AO17: 0 | AP17: 0 | AQ17: 196 | AR17: 0 | AS17: 14 | AT17: 0 | AU17: 4 | AV17: 0 | AW17: 27 | AX17: 0 | AY17: 35 | AZ17: 18 | BA17: 0 | BB17: 37 | BC17: 11 | BD17: 0 | BE17: 0
A18: 160 | B18: 10.6 | C18: 6.808817812 | D18: 2 | E18: 2 | F18: 12.66666667 | G18: 11.30683176 | H18: 5.833333333 | I18: 4.490112594 | K18: 12 | L18: 0 | M18: 2 | N18: 0 | O18: 0 | P18: 0 | Q18: 3 | R18: 3 | S18: 0 | T18: 0 | U18: 0 | V18: 0 | W18: 1 | X18: 0 | Y18: 0 | Z18: 0 | AA18: 0 | AB18: 0 | AC18: 0 | AD18: 7 | AE18: 0 | AF18: 0 | AG18: 0 | AI18: =K174 -> 150 | AJ18: =L174 -> 0 | AK18: 0 | AL18: 67 | AM18: 0 | AN18: 8 | AO18: 2 | AP18: 13 | AQ18: 45 | AR18: 9 | AS18: 0 | AT18: 0 | AU18: 0 | AV18: 0 | AW18: 0 | AX18: 0 | AY18: 0 | AZ18: 0 | BA18: 0 | BB18: 14 | BC18: 0 | BD18: 0 | BE18: 0
A19: 170 | B19: 14 | C19: 14 | D19: 0 | E19: 0 | F19: 36 | G19: 36 | H19: 10.5 | I19: 5.321340683 | K19: 13 | L19: 0 | M19: 0 | N19: 0 | O19: 0 | P19: 0 | Q19: 0 | R19: 0 | S19: 0 | T19: 0 | U19: 0 | V19: 0 | W19: 6 | X19: 0 | Y19: 21 | Z19: 0 | AA19: 0 | AB19: 0 | AC19: 0 | AD19: 34 | AE19: 0 | AF19: 0 | AG19: 0 | AI19: =K186 -> 160 | AJ19: =L186 -> 0 | AK19: 0 | AL19: 33 | AM19: 20 | AN19: 10 | AO19: 0 | AP19: 69 | AQ19: 6 | AR19: 4 | AS19: 0 | AT19: 3 | AU19: 0 | AV19: 0 | AW19: 1 | AX19: 0 | AY19: 0 | AZ19: 0 | BA19: 0 | BB19: 0 | BC19: 0 | BD19: 28 | BE19: 0
A20: 180 | B20: 23.2 | C20: 14.06200555 | D20: 2.4 | E20: 2.4 | F20: 14 | G20: 9.770704512 | H20: 20.33333333 | I20: 14.88100952 | K20: 14 | L20: 3 | M20: 0 | N20: 0 | O20: 0 | P20: 0 | Q20: 0 | R20: 0 | S20: 0 | T20: 0 | U20: 0 | V20: 0 | W20: 1 | X20: 0 | Y20: 24 | Z20: 0 | AA20: 0 | AB20: 0 | AC20: 0 | AD20: 18 | AE20: 0 | AF20: 0 | AG20: 0 | AI20: =K197 -> 170 | AJ20: =L197 -> 0 | AK20: 0 | AL20: 0 | AM20: 70 | AN20: 0 | AO20: 0 | AP20: 216 | AQ20: 0 | AR20: 25 | AS20: 3 | AT20: 6 | AU20: 0 | AV20: 0 | AW20: 0 | AX20: 0 | AY20: 0 | AZ20: 0 | BA20: 0 | BB20: 0 | BC20: 0 | BD20: 29 | BE20: 0
A21: 190 | B21: 45.2 | C21: 27.47253174 | D21: 0.4 | E21: 0.2449489743 | F21: 0 | G21: 0 | H21: 3.5 | I21: 2.202271555 | K21: 15 | L21: 36 | M21: 0 | N21: 0 | O21: 0 | P21: 0 | Q21: 0 | R21: 0 | S21: 0 | T21: 9 | U21: 0 | V21: 0 | W21: 1 | X21: 0 | Y21: 35 | Z21: 0 | AA21: 0 | AB21: 0 | AC21: 0 | AD21: 5 | AE21: 2 | AF21: 0 | AG21: 0 | AI21: =K208 -> 180 | AJ21: =L208 -> 33 | AK21: 0 | AL21: 0 | AM21: 74 | AN21: 0 | AO21: 0 | AP21: 58 | AQ21: 0 | AR21: 90 | AS21: 0 | AT21: 32 | AU21: 0 | AV21: 0 | AW21: 0 | AX21: 12 | AY21: 0 | AZ21: 0 | BA21: 9 | BB21: 0 | BC21: 26 | BD21: 0 | BE21: 0
A22: 200 | B22: 54.2 | C22: 33.67551039 | D22: 2.6 | E22: 2.357965225 | F22: 16 | G22: 11.48041811 | H22: 3.333333333 | I22: 3.333333333 | K22: 16 | L22: 10 | M22: 0 | N22: 0 | O22: 4 | P22: 0 | Q22: 0 | R22: 0 | S22: 0 | T22: 0 | U22: 0 | V22: 0 | W22: 0 | X22: 1 | Y22: 27 | Z22: 0 | AA22: 0 | AB22: 0 | AC22: 0 | AD22: 0 | AE22: 0 | AF22: 0 | AG22: 0 | AI22: =K220 -> 190 | AJ22: =L220 -> 30 | AK22: 0 | AL22: 0 | AM22: 149 | AN22: 0 | AO22: 1 | AP22: 0 | AQ22: 0 | AR22: 13 | AS22: 1 | AT22: 0 | AU22: 0 | AV22: 7 | AW22: 0 | AX22: 0 | AY22: 0 | AZ22: 1 | BA22: 47 | BB22: 0 | BC22: 0 | BD22: 0 | BE22: 0
A23: 210 | B23: 83 | C23: 31.30495168 | D23: 0 | E23: 0 | F23: 15 | G23: 6.022181222 | H23: 14.66666667 | I23: 14.66666667 | K23: 17 | L23: 0 | M23: 0 | N23: 0 | O23: 0 | P23: 0 | Q23: 0 | R23: 0 | S23: 0 | T23: 7 | U23: 0 | V23: 0 | W23: 1 | X23: 0 | Y23: 6 | Z23: 0 | AA23: 0 | AB23: 0 | AC23: 0 | AD23: 18 | AE23: 11 | AF23: 0 | AG23: 0 | AI23: =K231 -> 200 | AJ23: =L231 -> 183 | AK23: 1 | AL23: 0 | AM23: 46 | AN23: 0 | AO23: 0 | AP23: 27 | AQ23: 0 | AR23: 0 | AS23: 0 | AT23: 0 | AU23: 69 | AV23: 20 | AW23: 0 | AX23: 0 | AY23: 0 | AZ23: 12 | BA23: 42 | BB23: 0 | BC23: 0 | BD23: 0 | BE23: 0
K24: 18 | L24: 0 | M24: 0 | N24: 0 | O24: 0 | P24: 0 | Q24: 0 | R24: 0 | S24: 0 | T24: 0 | U24: 0 | V24: 0 | W24: 12 | X24: 0 | Y24: 0 | Z24: 0 | AA24: 0 | AB24: 0 | AC24: 0 | AD24: 14 | AE24: 0 | AF24: 0 | AG24: 0 | AI24: =K242 -> 210 | AJ24: =L242 -> 66 | AK24: 0 | AL24: 0 | AM24: 194 | AN24: 0 | AO24: 0 | AP24: 38 | AQ24: 14 | AR24: 0 | AS24: 0 | AT24: 0 | AU24: 1 | AV24: 88 | AW24: 11 | AX24: 0 | AY24: 73 | AZ24: 0 | BA24: 82 | BB24: 0 | BC24: 26 | BD24: 0 | BE24: 0
K25: 19 | L25: 0 | M25: 0 | N25: 0 | O25: 2 | P25: 0 | Q25: 3 | R25: 0 | S25: 0 | T25: 0 | U25: 1 | V25: 1 | W25: 16 | X25: 0 | Y25: 0 | Z25: 0 | AA25: 0 | AB25: 0 | AC25: 0 | AD25: 10 | AE25: 4 | AF25: 0 | AG25: 0
K26: 20 | L26: 0 | M26: 1 | N26: 1 | O26: 16 | P26: 0 | Q26: 1 | R26: 15 | S26: 0 | T26: 3 | U26: 0 | V26: 0 | W26: 6 | X26: 0 | Y26: 0 | Z26: 0 | AA26: 9 | AB26: 0 | AC26: 0 | AD26: 7 | AE26: 0 | AF26: 0 | AG26: 0
K27: 20 | L27: =SUM(L17:L26) -> 49 | M27: =SUM(M17:M26) -> 3 | N27: 1 | O27: 22 | P27: 1 | Q27: 7 | R27: 18 | S27: 0 | T27: 20 | U27: 1 | V27: 1 | W27: 44 | X27: 1 | Y27: 113 | Z27: 0 | AA27: 9 | AB27: 0 | AC27: 0 | AD27: 131 | AE27: 17 | AF27: 1 | AG27: 0
K28: 21 | L28: 0 | M28: 0 | N28: 0 | O28: 3 | P28: 0 | Q28: 0 | R28: 5 | S28: 0 | T28: 0 | U28: 0 | V28: 0 | W28: 0 | X28: 0 | Y28: 0 | Z28: 0 | AA28: 1 | AB28: 0 | AC28: 0 | AD28: 0 | AE28: 6 | AF28: 0 | AG28: 0
K29: 22 | L29: 0 | M29: 0 | N29: 0 | O29: 12 | P29: 0 | Q29: 1 | R29: 0 | S29: 0 | T29: 0 | U29: 1 | V29: 0 | W29: 0 | X29: 0 | Y29: 0 | Z29: 0 | AA29: 0 | AB29: 0 | AC29: 0 | AD29: 0 | AE29: 0 | AF29: 0 | AG29: 3
K30: 23 | L30: 0 | M30: 0 | N30: 0 | O30: 0 | P30: 0 | Q30: 0 | R30: 2 | S30: 0 | T30: 0 | U30: 0 | V30: 0 | W30: 3 | X30: 0 | Y30: 14 | Z30: 0 | AA30: 0 | AB30: 0 | AC30: 0 | AD30: 0 | AE30: 0 | AF30: 0 | AG30: 4
K31: 24 | L31: 0 | M31: 0 | N31: 0 | O31: 2 | P31: 0 | Q31: 0 | R31: 0 | S31: 0 | T31: 3 | U31: 0 | V31: 0 | W31: 28 | X31: 0 | Y31: 0 | Z31: 0 | AA31: 0 | AB31: 0 | AC31: 0 | AD31: 0 | AE31: 0 | AF31: 0 | AG31: 4
K32: 25 | L32: 0 | M32: 0 | N32: 0 | O32: 1 | P32: 0 | Q32: 0 | R32: 0 | S32: 0 | T32: 1 | U32: 0 | V32: 0 | W32: 0 | X32: 0 | Y32: 0 | Z32: 1 | AA32: 0 | AB32: 0 | AC32: 0 | AD32: 0 | AE32: 0 | AF32: 0 | AG32: 3
K33: 26 | L33: 0 | M33: 0 | N33: 0 | O33: 3 | P33: 0 | Q33: 0 | R33: 0 | S33: 0 | T33: 0 | U33: 0 | V33: 0 | W33: 0 | X33: 0 | Y33: 0 | Z33: 0 | AA33: 0 | AB33: 0 | AC33: 0 | AD33: 0 | AE33: 0 | AF33: 0 | AG33: 0
K34: 27 | L34: 0 | M34: 0 | N34: 8 | O34: 0 | P34: 0 | Q34: 0 | R34: 0 | S34: 0 | T34: 0 | U34: 0 | V34: 0 | W34: 0 | X34: 0 | Y34: 0 | Z34: 0 | AA34: 0 | AB34: 0 | AC34: 0 | AD34: 0 | AE34: 0 | AF34: 0 | AG34: 0
K35: 28 | L35: 0 | M35: 0 | N35: 0 | O35: 3 | P35: 0 | Q35: 0 | R35: 0 | S35: 0 | T35: 0 | U35: 0 | V35: 0 | W35: 0 | X35: 1 | Y35: 0 | Z35: 0 | AA35: 0 | AB35: 0 | AC35: 0 | AD35: 0 | AE35: 0 | AF35: 0 | AG35: 0
K36: 29 | L36: 0 | M36: 0 | N36: 9 | O36: 18 | P36: 0 | Q36: 0 | R36: 0 | S36: 0 | T36: 0 | U36: 0 | V36: 0 | W36: 0 | X36: 0 | Y36: 0 | Z36: 0 | AA36: 0 | AB36: 0 | AC36: 0 | AD36: 0 | AE36: 0 | AF36: 0 | AG36: 0
K37: 30 | L37: 0 | M37: 0 | N37: 0 | O37: 14 | P37: 0 | Q37: 0 | R37: 0 | S37: 0 | T37: 0 | U37: 0 | V37: 0 | W37: 0 | X37: 0 | Y37: 0 | Z37: 0 | AA37: 0 | AB37: 0 | AC37: 0 | AD37: 0 | AE37: 0 | AF37: 0 | AG37: 0
K38: 30 | L38: =SUM(L28:L37) -> 0 | M38: =SUM(M28:M37) -> 0 | N38: 17 | O38: 56 | P38: 0 | Q38: 1 | R38: 7 | S38: 0 | T38: 4 | U38: 1 | V38: 0 | W38: 31 | X38: 1 | Y38: 14 | Z38: 1 | AA38: 1 | AB38: 0 | AC38: 0 | AD38: 0 | AE38: 6 | AF38: 0 | AG38: 14
K39: 0 | L39: 0 | M39: 0 | N39: 0 | O39: 21 | P39: 0 | Q39: 1 | R39: 0 | S39: 0 | T39: 0 | U39: 0 | V39: 0 | W39: 0 | X39: 0 | Y39: 0 | Z39: 0 | AA39: 0 | AB39: 0 | AC39: 0 | AD39: 0 | AE39: 0 | AF39: 0 | AG39: 0
K40: 1 | L40: 0 | M40: 0 | N40: 0 | O40: 6 | P40: 0 | Q40: 2 | R40: 0 | S40: 0 | T40: 0 | U40: 0 | V40: 0 | W40: 0 | X40: 0 | Y40: 0 | Z40: 0 | AA40: 0 | AB40: 0 | AC40: 5 | AD40: 0 | AE40: 0 | AF40: 0 | AG40: 0
K41: 2 | L41: 0 | M41: 0 | N41: 0 | O41: 0 | P41: 0 | Q41: 3 | R41: 0 | S41: 0 | T41: 0 | U41: 0 | V41: 0 | W41: 0 | X41: 0 | Y41: 0 | Z41: 0 | AA41: 0 | AB41: 0 | AC41: 0 | AD41: 0 | AE41: 0 | AF41: 0 | AG41: 0
K42: 3 | L42: 0 | M42: 0 | N42: 1 | O42: 0 | P42: 0 | Q42: 0 | R42: 0 | S42: 0 | T42: 0 | U42: 0 | V42: 0 | W42: 0 | X42: 0 | Y42: 0 | Z42: 0 | AA42: 0 | AB42: 0 | AC42: 0 | AD42: 0 | AE42: 0 | AF42: 0 | AG42: 0
K43: 4 | L43: 0 | M43: 0 | N43: 0 | O43: 0 | P43: 0 | Q43: 1 | R43: 0 | S43: 0 | T43: 0 | U43: 0 | V43: 0 | W43: 0 | X43: 0 | Y43: 0 | Z43: 0 | AA43: 0 | AB43: 0 | AC43: 5 | AD43: 0 | AE43: 0 | AF43: 0 | AG43: 0
K44: 5 | L44: 0 | M44: 0 | N44: 0 | O44: 0 | P44: 0 | Q44: 1 | R44: 0 | S44: 0 | T44: 0 | U44: 0 | V44: 0 | W44: 0 | X44: 0 | Y44: 0 | Z44: 0 | AA44: 0 | AB44: 0 | AC44: 11 | AD44: 0 | AE44: 0 | AF44: 2 | AG44: 0
K45: 6 | L45: 0 | M45: 0 | N45: 0 | O45: 0 | P45: 0 | Q45: 0 | R45: 0 | S45: 0 | T45: 0 | U45: 0 | V45: 0 | W45: 0 | X45: 0 | Y45: 0 | Z45: 0 | AA45: 0 | AB45: 0 | AC45: 4 | AD45: 0 | AE45: 0 | AF45: 0 | AG45: 0
K46: 7 | L46: 0 | M46: 0 | N46: 0 | O46: 0 | P46: 0 | Q46: 1 | R46: 0 | S46: 0 | T46: 0 | U46: 0 | V46: 0 | W46: 0 | X46: 0 | Y46: 0 | Z46: 0 | AA46: 0 | AB46: 0 | AC46: 0 | AD46: 0 | AE46: 0 | AF46: 0 | AG46: 0
K47: 8 | L47: 0 | M47: 0 | N47: 0 | O47: 20 | P47: 0 | Q47: 0 | R47: 0 | S47: 0 | T47: 0 | U47: 0 | V47: 0 | W47: 0 | X47: 0 | Y47: 0 | Z47: 0 | AA47: 0 | AB47: 0 | AC47: 4 | AD47: 0 | AE47: 0 | AF47: 0 | AG47: 0
K48: 9 | L48: 0 | M48: 0 | N48: 0 | O48: 0 | P48: 0 | Q48: 0 | R48: 0 | S48: 0 | T48: 0 | U48: 0 | V48: 0 | W48: 0 | X48: 0 | Y48: 0 | Z48: 0 | AA48: 0 | AB48: 0 | AC48: 0 | AD48: 0 | AE48: 0 | AF48: 0 | AG48: 0
K49: 10 | L49: 0 | M49: 0 | N49: 0 | O49: 0 | P49: 0 | Q49: 0 | R49: 0 | S49: 0 | T49: 0 | U49: 0 | V49: 0 | W49: 0 | X49: 0 | Y49: 0 | Z49: 0 | AA49: 0 | AB49: 0 | AC49: 0 | AD49: 0 | AE49: 0 | AF49: 4 | AG49: 0
K50: 40 | L50: =SUM(L39:L49) -> 0 | M50: 0 | N50: 1 | O50: 47 | P50: 0 | Q50: 9 | R50: 0 | S50: 0 | T50: 0 | U50: 0 | V50: 0 | W50: 0 | X50: 0 | Y50: 0 | Z50: 0 | AA50: 0 | AB50: 0 | AC50: 29 | AD50: 0 | AE50: 0 | AF50: 6 | AG50: 0
K51: 11 | L51: 0 | M51: 0 | N51: 0 | O51: 0 | P51: 0 | Q51: 0 | R51: 0 | S51: 0 | T51: 0 | U51: 0 | V51: 0 | W51: 0 | X51: 0 | Y51: 0 | Z51: 0 | AA51: 0 | AB51: 0 | AC51: 0 | AD51: 0 | AE51: 0 | AF51: 0 | AG51: 0
K52: 12 | L52: 0 | M52: 0 | N52: 0 | O52: 0 | P52: 0 | Q52: 0 | R52: 0 | S52: 0 | T52: 0 | U52: 0 | V52: 0 | W52: 0 | X52: 0 | Y52: 0 | Z52: 0 | AA52: 0 | AB52: 0 | AC52: 0 | AD52: 0 | AE52: 0 | AF52: 0 | AG52: 0
K53: 13 | L53: 0 | M53: 0 | N53: 0 | O53: 0 | P53: 0 | Q53: 0 | R53: 9 | S53: 0 | T53: 0 | U53: 6 | V53: 0 | W53: 0 | X53: 0 | Y53: 0 | Z53: 0 | AA53: 0 | AB53: 0 | AC53: 0 | AD53: 0 | AE53: 0 | AF53: 0 | AG53: 0
K54: 14 | L54: 0 | M54: 0 | N54: 0 | O54: 0 | P54: 0 | Q54: 0 | R54: 0 | S54: 0 | T54: 0 | U54: 0 | V54: 0 | W54: 0 | X54: 0 | Y54: 0 | Z54: 0 | AA54: 0 | AB54: 0 | AC54: 0 | AD54: 0 | AE54: 0 | AF54: 0 | AG54: 0
K55: 15 | L55: 0 | M55: 0 | N55: 0 | O55: 0 | P55: 0 | Q55: 5 | R55: 0 | S55: 0 | T55: 0 | U55: 0 | V55: 0 | W55: 0 | X55: 0 | Y55: 0 | Z55: 0 | AA55: 0 | AB55: 0 | AC55: 0 | AD55: 0 | AE55: 0 | AF55: 0 | AG55: 0
K56: 16 | L56: 0 | M56: 0 | N56: 0 | O56: 0 | P56: 0 | Q56: 1 | R56: 5 | S56: 0 | T56: 0 | U56: 1 | V56: 0 | W56: 0 | X56: 0 | Y56: 0 | Z56: 0 | AA56: 0 | AB56: 0 | AC56: 0 | AD56: 0 | AE56: 0 | AF56: 0 | AG56: 0
K57: 17 | L57: 0 | M57: 0 | N57: 0 | O57: 0 | P57: 0 | Q57: 0 | R57: 0 | S57: 0 | T57: 0 | U57: 1 | V57: 0 | W57: 0 | X57: 0 | Y57: 0 | Z57: 0 | AA57: 0 | AB57: 0 | AC57: 0 | AD57: 0 | AE57: 0 | AF57: 0 | AG57: 0
K58: 18 | L58: 0 | M58: 0 | N58: 0 | O58: 0 | P58: 0 | Q58: 0 | R58: 0 | S58: 0 | T58: 0 | U58: 0 | V58: 0 | W58: 0 | X58: 0 | Y58: 0 | Z58: 0 | AA58: 0 | AB58: 0 | AC58: 0 | AD58: 0 | AE58: 0 | AF58: 0 | AG58: 0
K59: 19 | L59: 0 | M59: 0 | N59: 0 | O59: 0 | P59: 0 | Q59: 0 | R59: 5 | S59: 0 | T59: 0 | U59: 0 | V59: 0 | W59: 0 | X59: 0 | Y59: 0 | Z59: 0 | AA59: 0 | AB59: 0 | AC59: 0 | AD59: 0 | AE59: 0 | AF59: 0 | AG59: 0
K60: 20 | L60: 0 | M60: 0 | N60: 0 | O60: 0 | P60: 0 | Q60: 0 | R60: 0 | S60: 0 | T60: 0 | U60: 0 | V60: 0 | W60: 0 | X60: 0 | Y60: 0 | Z60: 0 | AA60: 0 | AB60: 0 | AC60: 0 | AD60: 0 | AE60: 0 | AF60: 0 | AG60: 0
K61: 50 | L61: =SUM(L51:L60) -> 0 | M61: =SUM(M51:M60) -> 0 | N61: 0 | O61: 0 | P61: 0 | Q61: 6 | R61: 19 | S61: 0 | T61: 0 | U61: 8 | V61: 0 | W61: 0 | X61: 0 | Y61: 0 | Z61: 0 | AA61: 0 | AB61: 0 | AC61: 0 | AD61: 0 | AE61: 0 | AF61: 0 | AG61: 0
K62: 21 | L62: 0 | M62: 0 | N62: 0 | O62: 0 | P62: 0 | Q62: 0 | R62: 0 | S62: 0 | T62: 0 | U62: 0 | V62: 0 | W62: 0 | X62: 0 | Y62: 0 | Z62: 0 | AA62: 0 | AB62: 0 | AC62: 0 | AD62: 0 | AE62: 0 | AF62: 0 | AG62: 0
K63: 22 | L63: 0 | M63: 0 | N63: 0 | O63: 0 | P63: 0 | Q63: 0 | R63: 0 | S63: 0 | T63: 0 | U63: 0 | V63: 0 | W63: 0 | X63: 0 | Y63: 0 | Z63: 0 | AA63: 3 | AB63: 2 | AC63: 0 | AD63: 0 | AE63: 0 | AF63: 0 | AG63: 0
K64: 23 | L64: 0 | M64: 0 | N64: 0 | O64: 0 | P64: 0 | Q64: 0 | R64: 0 | S64: 0 | T64: 0 | U64: 0 | V64: 0 | W64: 0 | X64: 0 | Y64: 0 | Z64: 0 | AA64: 7 | AB64: 0 | AC64: 0 | AD64: 0 | AE64: 0 | AF64: 0 | AG64: 0
K65: 24 | L65: 0 | M65: 0 | N65: 0 | O65: 0 | P65: 1 | Q65: 0 | R65: 0 | S65: 0 | T65: 0 | U65: 1 | V65: 1 | W65: 0 | X65: 0 | Y65: 0 | Z65: 0 | AA65: 0 | AB65: 0 | AC65: 0 | AD65: 0 | AE65: 0 | AF65: 0 | AG65: 0
K66: 25 | L66: 0 | M66: 0 | N66: 0 | O66: 0 | P66: 0 | Q66: 0 | R66: 0 | S66: 0 | T66: 0 | U66: 0 | V66: 0 | W66: 0 | X66: 0 | Y66: 0 | Z66: 0 | AA66: 0 | AB66: 0 | AC66: 0 | AD66: 0 | AE66: 0 | AF66: 0 | AG66: 0
K67: 26 | L67: 0 | M67: 0 | N67: 0 | O67: 0 | P67: 0 | Q67: 0 | R67: 0 | S67: 0 | T67: 0 | U67: 16 | V67: 0 | W67: 0 | X67: 0 | Y67: 0 | Z67: 0 | AA67: 0 | AB67: 1 | AC67: 0 | AD67: 0 | AE67: 0 | AF67: 0 | AG67: 0
K68: 27 | L68: 0 | M68: 0 | N68: 0 | O68: 0 | P68: 0 | Q68: 0 | R68: 0 | S68: 0 | T68: 0 | U68: 2 | V68: 0 | W68: 0 | X68: 0 | Y68: 0 | Z68: 0 | AA68: 1 | AB68: 0 | AC68: 0 | AD68: 0 | AE68: 0 | AF68: 0 | AG68: 0
K69: 28 | L69: 0 | M69: 0 | N69: 0 | O69: 0 | P69: 0 | Q69: 0 | R69: 0 | S69: 0 | T69: 1 | U69: 0 | V69: 0 | W69: 0 | X69: 0 | Y69: 0 | Z69: 0 | AA69: 0 | AB69: 0 | AC69: 0 | AD69: 0 | AE69: 0 | AF69: 0 | AG69: 0
K70: 29 | L70: 0 | M70: 0 | N70: 0 | O70: 0 | P70: 0 | Q70: 0 | R70: 0 | S70: 0 | T70: 0 | U70: 0 | V70: 0 | W70: 0 | X70: 0 | Y70: 0 | Z70: 3 | AA70: 0 | AB70: 0 | AC70: 0 | AD70: 0 | AE70: 0 | AF70: 0 | AG70: 0
K71: 30 | L71: 0 | M71: 0 | N71: 0 | O71: 0 | P71: 0 | Q71: 0 | R71: 0 | S71: 0 | T71: 0 | U71: 1 | V71: 0 | W71: 0 | X71: 0 | Y71: 0 | Z71: 0 | AA71: 0 | AB71: 0 | AC71: 0 | AD71: 0 | AE71: 0 | AF71: 0 | AG71: 0
K72: 60 | L72: =SUM(L62:L71) -> 0 | M72: =SUM(M62:M71) -> 0 | N72: 0 | O72: 0 | P72: 1 | Q72: 0 | R72: 0 | S72: 0 | T72: 1 | U72: 20 | V72: 1 | W72: 0 | X72: 0 | Y72: 0 | Z72: 3 | AA72: 11 | AB72: 3 | AC72: 0 | AD72: 0 | AE72: 0 | AF72: 0 | AG72: 0
K73: 0 | L73: 0 | M73: 0 | N73: 0 | O73: 0 | P73: 4 | Q73: 0 | R73: 0 | S73: 0 | T73: 0 | U73: 0 | V73: 0 | W73: 0 | X73: 0 | Y73: 0 | Z73: 0 | AA73: 0 | AB73: 0 | AC73: 0 | AD73: 0 | AE73: 0 | AF73: 0 | AG73: 0
K74: 1 | L74: 0 | M74: 0 | N74: 0 | O74: 0 | P74: 4 | Q74: 0 | R74: 0 | S74: 0 | T74: 0 | U74: 0 | V74: 0 | W74: 0 | X74: 0 | Y74: 0 | Z74: 0 | AA74: 0 | AB74: 0 | AC74: 0 | AD74: 0 | AE74: 0 | AF74: 0 | AG74: 0
K75: 2 | L75: 0 | M75: 0 | N75: 0 | O75: 0 | P75: 9 | Q75: 0 | R75: 0 | S75: 0 | T75: 2 | U75: 0 | V75: 0 | W75: 0 | X75: 0 | Y75: 0 | Z75: 0 | AA75: 0 | AB75: 0 | AC75: 0 | AD75: 0 | AE75: 0 | AF75: 0 | AG75: 0
K76: 3 | L76: 0 | M76: 0 | N76: 0 | O76: 0 | P76: 1 | Q76: 0 | R76: 0 | S76: 0 | T76: 0 | U76: 0 | V76: 0 | W76: 0 | X76: 0 | Y76: 0 | Z76: 0 | AA76: 0 | AB76: 0 | AC76: 0 | AD76: 0 | AE76: 0 | AF76: 0 | AG76: 0
K77: 4 | L77: 0 | M77: 0 | N77: 0 | O77: 0 | P77: 0 | Q77: 0 | R77: 0 | S77: 0 | T77: 0 | U77: 0 | V77: 0 | W77: 0 | X77: 0 | Y77: 0 | Z77: 0 | AA77: 0 | AB77: 0 | AC77: 0 | AD77: 0 | AE77: 0 | AF77: 0 | AG77: 0
K78: 5 | L78: 0 | M78: 0 | N78: 0 | O78: 0 | P78: 0 | Q78: 0 | R78: 0 | S78: 0 | T78: 0 | U78: 0 | V78: 0 | W78: 0 | X78: 0 | Y78: 0 | Z78: 0 | AA78: 0 | AB78: 0 | AC78: 0 | AD78: 0 | AE78: 0 | AF78: 0 | AG78: 0
K79: 6 | L79: 0 | M79: 0 | N79: 0 | O79: 0 | P79: 0 | Q79: 0 | R79: 0 | S79: 2 | T79: 0 | U79: 0 | V79: 0 | W79: 0 | X79: 0 | Y79: 0 | Z79: 0 | AA79: 0 | AB79: 0 | AC79: 0 | AD79: 0 | AE79: 8 | AF79: 0 | AG79: 0
K80: 7 | L80: 0 | M80: 0 | N80: 0 | O80: 0 | P80: 0 | Q80: 0 | R80: 0 | S80: 0 | T80: 0 | U80: 0 | V80: 0 | W80: 0 | X80: 0 | Y80: 0 | Z80: 0 | AA80: 0 | AB80: 0 | AC80: 0 | AD80: 0 | AE80: 5 | AF80: 0 | AG80: 0
K81: 8 | L81: 0 | M81: 0 | N81: 0 | O81: 0 | P81: 0 | Q81: 0 | R81: 0 | S81: 1 | T81: 0 | U81: 0 | V81: 0 | W81: 0 | X81: 0 | Y81: 0 | Z81: 0 | AA81: 0 | AB81: 0 | AC81: 0 | AD81: 0 | AE81: 5 | AF81: 0 | AG81: 0
K82: 9 | L82: 0 | M82: 0 | N82: 0 | O82: 0 | P82: 0 | Q82: 0 | R82: 0 | S82: 0 | T82: 0 | U82: 0 | V82: 0 | W82: 0 | X82: 0 | Y82: 0 | Z82: 0 | AA82: 0 | AB82: 0 | AC82: 0 | AD82: 0 | AE82: 0 | AF82: 0 | AG82: 0
K83: 10 | L83: 0 | M83: 0 | N83: 0 | O83: 2 | P83: 0 | Q83: 1 | R83: 1 | S83: 0 | T83: 17 | U83: 0 | V83: 0 | W83: 0 | X83: 0 | Y83: 0 | Z83: 0 | AA83: 4 | AB83: 0 | AC83: 0 | AD83: 0 | AE83: 0 | AF83: 0 | AG83: 0
K84: 70 | L84: =SUM(L73:L83) -> 0 | M84: 0 | N84: 0 | O84: 2 | P84: 18 | Q84: 1 | R84: 1 | S84: 3 | T84: 19 | U84: 0 | V84: 0 | W84: 0 | X84: 0 | Y84: 0 | Z84: 0 | AA84: 4 | AB84: 0 | AC84: 0 | AD84: 0 | AE84: 18 | AF84: 0 | AG84: 0
K85: 11 | L85: 0 | M85: 0 | N85: 0 | O85: 1 | P85: 0 | Q85: 0 | R85: 3 | S85: 10 | T85: 11 | U85: 0 | V85: 0 | W85: 0 | X85: 0 | Y85: 0 | Z85: 0 | AA85: 0 | AB85: 0 | AC85: 0 | AD85: 0 | AE85: 0 | AF85: 0 | AG85: 0
K86: 12 | L86: 0 | M86: 0 | N86: 0 | O86: 1 | P86: 0 | Q86: 0 | R86: 23 | S86: 0 | T86: 0 | U86: 0 | V86: 0 | W86: 0 | X86: 0 | Y86: 0 | Z86: 0 | AA86: 0 | AB86: 0 | AC86: 0 | AD86: 0 | AE86: 0 | AF86: 0 | AG86: 0
K87: 13 | L87: 0 | M87: 0 | N87: 0 | O87: 2 | P87: 0 | Q87: 1 | R87: 14 | S87: 0 | T87: 8 | U87: 0 | V87: 0 | W87: 5 | X87: 0 | Y87: 0 | Z87: 0 | AA87: 0 | AB87: 0 | AC87: 0 | AD87: 0 | AE87: 0 | AF87: 0 | AG87: 0
K88: 14 | L88: 0 | M88: 0 | N88: 0 | O88: 1 | P88: 0 | Q88: 0 | R88: 6 | S88: 0 | T88: 0 | U88: 0 | V88: 0 | W88: 0 | X88: 0 | Y88: 0 | Z88: 1 | AA88: 0 | AB88: 0 | AC88: 0 | AD88: 0 | AE88: 0 | AF88: 0 | AG88: 0
K89: 15 | L89: 0 | M89: 0 | N89: 16 | O89: 0 | P89: 0 | Q89: 0 | R89: 47 | S89: 0 | T89: 0 | U89: 0 | V89: 0 | W89: 0 | X89: 0 | Y89: 0 | Z89: 0 | AA89: 0 | AB89: 0 | AC89: 2 | AD89: 0 | AE89: 17 | AF89: 0 | AG89: 0
K90: 16 | L90: 0 | M90: 0 | N90: 14 | O90: 0 | P90: 0 | Q90: 0 | R90: 4 | S90: 0 | T90: 0 | U90: 0 | V90: 0 | W90: 0 | X90: 0 | Y90: 0 | Z90: 0 | AA90: 0 | AB90: 0 | AC90: 1 | AD90: 0 | AE90: 0 | AF90: 0 | AG90: 0
K91: 17 | L91: 0 | M91: 0 | N91: 1 | O91: 0 | P91: 0 | Q91: 0 | R91: 5 | S91: 0 | T91: 0 | U91: 0 | V91: 0 | W91: 0 | X91: 0 | Y91: 0 | Z91: 0 | AA91: 0 | AB91: 0 | AC91: 1 | AD91: 0 | AE91: 0 | AF91: 0 | AG91: 0
K92: 18 | L92: 0 | M92: 0 | N92: 0 | O92: 2 | P92: 0 | Q92: 0 | R92: 4 | S92: 8 | T92: 0 | U92: 0 | V92: 0 | W92: 0 | X92: 0 | Y92: 0 | Z92: 0 | AA92: 0 | AB92: 0 | AC92: 3 | AD92: 0 | AE92: 22 | AF92: 0 | AG92: 0
K93: 19 | L93: 0 | M93: 0 | N93: 0 | O93: 4 | P93: 0 | Q93: 0 | R93: 0 | S93: 6 | T93: 0 | U93: 0 | V93: 0 | W93: 0 | X93: 0 | Y93: 0 | Z93: 0 | AA93: 0 | AB93: 0 | AC93: 3 | AD93: 0 | AE93: 6 | AF93: 0 | AG93: 0
K94: 20 | L94: 1 | M94: 0 | N94: 16 | O94: 5 | P94: 0 | Q94: 0 | R94: 21 | S94: 0 | T94: 0 | U94: 0 | V94: 0 | W94: 0 | X94: 0 | Y94: 0 | Z94: 0 | AA94: 0 | AB94: 0 | AC94: 0 | AD94: 0 | AE94: 0 | AF94: 0 | AG94: 0
K95: 80 | L95: =SUM(L85:L94) -> 1 | M95: =SUM(M85:M94) -> 0 | N95: 47 | O95: 16 | P95: 0 | Q95: 1 | R95: 127 | S95: 24 | T95: 19 | U95: 0 | V95: 0 | W95: 5 | X95: 0 | Y95: 0 | Z95: 1 | AA95: 0 | AB95: 0 | AC95: 10 | AD95: 0 | AE95: 45 | AF95: 0 | AG95: 0
K96: 21 | L96: 0 | M96: 0 | N96: 19 | O96: 0 | P96: 0 | Q96: 0 | R96: 34 | S96: 0 | T96: 0 | U96: 0 | V96: 0 | W96: 0 | X96: 0 | Y96: 0 | Z96: 0 | AA96: 0 | AB96: 0 | AC96: 15 | AD96: 0 | AE96: 0 | AF96: 0 | AG96: 0
K97: 22 | L97: 1 | M97: 0 | N97: 15 | O97: 0 | P97: 0 | Q97: 0 | R97: 30 | S97: 0 | T97: 0 | U97: 0 | V97: 1 | W97: 0 | X97: 5 | Y97: 0 | Z97: 0 | AA97: 0 | AB97: 0 | AC97: 0 | AD97: 0 | AE97: 0 | AF97: 0 | AG97: 0
K98: 23 | L98: 0 | M98: 0 | N98: 7 | O98: 1 | P98: 0 | Q98: 1 | R98: 13 | S98: 0 | T98: 0 | U98: 0 | V98: 0 | W98: 0 | X98: 0 | Y98: 0 | Z98: 0 | AA98: 0 | AB98: 0 | AC98: 1 | AD98: 0 | AE98: 0 | AF98: 0 | AG98: 0
K99: 24 | L99: 0 | M99: 0 | N99: 0 | O99: 12 | P99: 0 | Q99: 0 | R99: 3 | S99: 0 | T99: 0 | U99: 0 | V99: 0 | W99: 0 | X99: 0 | Y99: 0 | Z99: 0 | AA99: 0 | AB99: 2 | AC99: 0 | AD99: 0 | AE99: 0 | AF99: 0 | AG99: 0
K100: 25 | L100: 2 | M100: 0 | N100: 1 | O100: 0 | P100: 0 | Q100: 0 | R100: 16 | S100: 0 | T100: 0 | U100: 0 | V100: 0 | W100: 0 | X100: 0 | Y100: 0 | Z100: 0 | AA100: 0 | AB100: 0 | AC100: 7 | AD100: 0 | AE100: 0 | AF100: 0 | AG100: 0
K101: 26 | L101: 0 | M101: 0 | N101: 0 | O101: 0 | P101: 0 | Q101: 0 | R101: 3 | S101: 27 | T101: 0 | U101: 0 | V101: 0 | W101: 0 | X101: 0 | Y101: 0 | Z101: 0 | AA101: 0 | AB101: 0 | AC101: 5 | AD101: 0 | AE101: 0 | AF101: 0 | AG101: 0
K102: 27 | L102: 6 | M102: 1 | N102: 0 | O102: 1 | P102: 0 | Q102: 0 | R102: 6 | S102: 25 | T102: 0 | U102: 0 | V102: 0 | W102: 0 | X102: 0 | Y102: 0 | Z102: 0 | AA102: 0 | AB102: 0 | AC102: 2 | AD102: 0 | AE102: 0 | AF102: 0 | AG102: 0
K103: 28 | L103: 16 | M103: 0 | N103: 0 | O103: 0 | P103: 0 | Q103: 0 | R103: 0 | S103: 39 | T103: 0 | U103: 0 | V103: 0 | W103: 0 | X103: 0 | Y103: 0 | Z103: 0 | AA103: 0 | AB103: 0 | AC103: 3 | AD103: 0 | AE103: 0 | AF103: 0 | AG103: 0
K104: 29 | L104: 17 | M104: 0 | N104: 0 | O104: 21 | P104: 0 | Q104: 0 | R104: 0 | S104: 33 | T104: 0 | U104: 0 | V104: 0 | W104: 0 | X104: 0 | Y104: 0 | Z104: 0 | AA104: 0 | AB104: 0 | AC104: 0 | AD104: 1 | AE104: 0 | AF104: 0 | AG104: 0
K105: 30 | L105: 0 | M105: 0 | N105: 0 | O105: 16 | P105: 0 | Q105: 0 | R105: 0 | S105: 16 | T105: 0 | U105: 0 | V105: 0 | W105: 0 | X105: 4 | Y105: 0 | Z105: 0 | AA105: 0 | AB105: 0 | AC105: 9 | AD105: 0 | AE105: 0 | AF105: 0 | AG105: 0
K106: 90 | L106: =SUM(L96:L105) -> 42 | M106: =SUM(M96:M105) -> 1 | N106: 42 | O106: 51 | P106: 0 | Q106: 1 | R106: 105 | S106: 140 | T106: 0 | U106: 0 | V106: 1 | W106: 0 | X106: 9 | Y106: 0 | Z106: 0 | AA106: 0 | AB106: 2 | AC106: 42 | AD106: 1 | AE106: 0 | AF106: 0 | AG106: 0
K107: 0 | L107: 0 | M107: 0 | N107: 0 | O107: 13 | P107: 0 | Q107: 0 | R107: 0 | S107: 3 | T107: 0 | U107: 0 | V107: 0 | W107: 0 | X107: 0 | Y107: 0 | Z107: 0 | AA107: 0 | AB107: 0 | AC107: 11 | AD107: 0 | AE107: 0 | AF107: 0 | AG107: 0
K108: 1 | L108: 22 | M108: 0 | N108: 0 | O108: 29 | P108: 0 | Q108: 0 | R108: 0 | S108: 2 | T108: 0 | U108: 0 | V108: 0 | W108: 0 | X108: 0 | Y108: 0 | Z108: 2 | AA108: 3 | AB108: 0 | AC108: 9 | AD108: 0 | AE108: 0 | AF108: 0 | AG108: 0
K109: 2 | L109: 32 | M109: 0 | N109: 0 | O109: 18 | P109: 0 | Q109: 0 | R109: 0 | S109: 0 | T109: 0 | U109: 0 | V109: 0 | W109: 0 | X109: 0 | Y109: 0 | Z109: 1 | AA109: 0 | AB109: 0 | AC109: 9 | AD109: 0 | AE109: 0 | AF109: 0 | AG109: 0
K110: 3 | L110: 0 | M110: 0 | N110: 0 | O110: 12 | P110: 0 | Q110: 0 | R110: 0 | S110: 0 | T110: 0 | U110: 0 | V110: 1 | W110: 0 | X110: 0 | Y110: 0 | Z110: 0 | AA110: 0 | AB110: 0 | AC110: 0 | AD110: 0 | AE110: 0 | AF110: 0 | AG110: 0
K111: 4 | L111: 37 | M111: 0 | N111: 0 | O111: 0 | P111: 0 | Q111: 0 | R111: 0 | S111: 0 | T111: 0 | U111: 0 | V111: 0 | W111: 0 | X111: 0 | Y111: 0 | Z111: 0 | AA111: 0 | AB111: 0 | AC111: 0 | AD111: 0 | AE111: 0 | AF111: 0 | AG111: 0
K112: 5 | L112: 38 | M112: 0 | N112: 0 | O112: 0 | P112: 0 | Q112: 0 | R112: 0 | S112: 6 | T112: 0 | U112: 0 | V112: 0 | W112: 0 | X112: 0 | Y112: 0 | Z112: 0 | AA112: 0 | AB112: 0 | AC112: 0 | AD112: 0 | AE112: 0 | AF112: 0 | AG112: 0
K113: 6 | L113: 29 | M113: 0 | N113: 0 | O113: 0 | P113: 0 | Q113: 0 | R113: 0 | S113: 0 | T113: 0 | U113: 0 | V113: 1 | W113: 0 | X113: 0 | Y113: 0 | Z113: 0 | AA113: 0 | AB113: 0 | AC113: 0 | AD113: 0 | AE113: 0 | AF113: 0 | AG113: 0
K114: 7 | L114: 0 | M114: 0 | N114: 0 | O114: 0 | P114: 0 | Q114: 0 | R114: 1 | S114: 4 | T114: 0 | U114: 0 | V114: 0 | W114: 0 | X114: 0 | Y114: 0 | Z114: 0 | AA114: 0 | AB114: 0 | AC114: 0 | AD114: 0 | AE114: 0 | AF114: 0 | AG114: 2
K115: 8 | L115: 0 | M115: 0 | N115: 0 | O115: 0 | P115: 0 | Q115: 0 | R115: 0 | S115: 0 | T115: 0 | U115: 0 | V115: 0 | W115: 0 | X115: 0 | Y115: 0 | Z115: 0 | AA115: 0 | AB115: 0 | AC115: 0 | AD115: 0 | AE115: 0 | AF115: 0 | AG115: 1
K116: 9 | L116: 0 | M116: 0 | N116: 0 | O116: 0 | P116: 0 | Q116: 0 | R116: 0 | S116: 7 | T116: 0 | U116: 0 | V116: 0 | W116: 0 | X116: 0 | Y116: 0 | Z116: 0 | AA116: 0 | AB116: 0 | AC116: 0 | AD116: 0 | AE116: 0 | AF116: 0 | AG116: 0
K117: 10 | L117: 5 | M117: 0 | N117: 0 | O117: 0 | P117: 0 | Q117: 0 | R117: 0 | S117: 6 | T117: 0 | U117: 0 | V117: 0 | W117: 0 | X117: 0 | Y117: 0 | Z117: 0 | AA117: 0 | AB117: 0 | AC117: 0 | AD117: 0 | AE117: 0 | AF117: 0 | AG117: 0
K118: 100 | L118: =SUM(L107:L117) -> 163 | M118: =SUM(M107:M117) -> 0 | N118: =SUM(N107:N117) -> 0 | O118: 72 | P118: 0 | Q118: 0 | R118: 1 | S118: 28 | T118: 0 | U118: 0 | V118: 2 | W118: 0 | X118: 0 | Y118: 0 | Z118: 3 | AA118: 3 | AB118: 0 | AC118: 29 | AD118: 0 | AE118: 0 | AF118: 0 | AG118: 3
K119: 11 | L119: 0 | M119: 0 | N119: 0 | O119: 13 | P119: 0 | Q119: 0 | R119: 0 | S119: 2 | T119: 0 | U119: 0 | V119: 8 | W119: 0 | X119: 0 | Y119: 0 | Z119: 0 | AA119: 0 | AB119: 0 | AC119: 0 | AD119: 0 | AE119: 0 | AF119: 0 | AG119: 0
K120: 12 | L120: 0 | M120: 0 | N120: 0 | O120: 6 | P120: 0 | Q120: 0 | R120: 0 | S120: 8 | T120: 0 | U120: 0 | V120: 0 | W120: 0 | X120: 0 | Y120: 0 | Z120: 0 | AA120: 0 | AB120: 0 | AC120: 0 | AD120: 0 | AE120: 0 | AF120: 0 | AG120: 0
K121: 13 | L121: 0 | M121: 0 | N121: 0 | O121: 0 | P121: 0 | Q121: 0 | R121: 0 | S121: 33 | T121: 0 | U121: 0 | V121: 2 | W121: 0 | X121: 0 | Y121: 0 | Z121: 0 | AA121: 0 | AB121: 0 | AC121: 0 | AD121: 0 | AE121: 0 | AF121: 0 | AG121: 0
K122: 14 | L122: 0 | M122: 0 | N122: 0 | O122: 0 | P122: 0 | Q122: 0 | R122: 0 | S122: 39 | T122: 0 | U122: 0 | V122: 0 | W122: 0 | X122: 0 | Y122: 0 | Z122: 0 | AA122: 0 | AB122: 1 | AC122: 0 | AD122: 0 | AE122: 0 | AF122: 0 | AG122: 0
K123: 15 | L123: 0 | M123: 0 | N123: 0 | O123: 0 | P123: 0 | Q123: 0 | R123: 0 | S123: 33 | T123: 0 | U123: 0 | V123: 0 | W123: 0 | X123: 0 | Y123: 0 | Z123: 0 | AA123: 0 | AB123: 0 | AC123: 0 | AD123: 0 | AE123: 0 | AF123: 0 | AG123: 0
K124: 16 | L124: 0 | M124: 0 | N124: 0 | O124: 0 | P124: 0 | Q124: 0 | R124: 0 | S124: 27 | T124: 0 | U124: 0 | V124: 0 | W124: 0 | X124: 0 | Y124: 18 | Z124: 0 | AA124: 0 | AB124: 0 | AC124: 0 | AD124: 0 | AE124: 0 | AF124: 0 | AG124: 0
K125: 17 | L125: 0 | M125: 0 | N125: 0 | O125: 0 | P125: 0 | Q125: 0 | R125: 0 | S125: 11 | T125: 0 | U125: 1 | V125: 0 | W125: 0 | X125: 0 | Y125: 0 | Z125: 0 | AA125: 0 | AB125: 0 | AC125: 0 | AD125: 0 | AE125: 0 | AF125: 0 | AG125: 0
K126: 18 | L126: 0 | M126: 0 | N126: 0 | O126: 0 | P126: 0 | Q126: 0 | R126: 0 | S126: 22 | T126: 0 | U126: 0 | V126: 0 | W126: 0 | X126: 0 | Y126: 17 | Z126: 0 | AA126: 0 | AB126: 0 | AC126: 0 | AD126: 0 | AE126: 0 | AF126: 0 | AG126: 0
K127: 19 | L127: 0 | M127: 0 | N127: 0 | O127: 0 | P127: 0 | Q127: 0 | R127: 0 | S127: 38 | T127: 0 | U127: 0 | V127: 0 | W127: 0 | X127: 0 | Y127: 0 | Z127: 0 | AA127: 0 | AB127: 0 | AC127: 0 | AD127: 0 | AE127: 0 | AF127: 0 | AG127: 0
K128: 20 | L128: 0 | M128: 0 | N128: 0 | O128: 0 | P128: 0 | Q128: 0 | R128: 0 | S128: 3 | T128: 0 | U128: 0 | V128: 0 | W128: 0 | X128: 0 | Y128: 19 | Z128: 0 | AA128: 0 | AB128: 0 | AC128: 0 | AD128: 0 | AE128: 0 | AF128: 0 | AG128: 0
K129: 110 | L129: =SUM(L119:L128) -> 0 | M129: =SUM(M119:M128) -> 0 | N129: 0 | O129: 19 | P129: 0 | Q129: 0 | R129: 0 | S129: 216 | T129: 0 | U129: 1 | V129: 10 | W129: 0 | X129: 0 | Y129: 54 | Z129: 0 | AA129: 0 | AB129: 1 | AC129: 0 | AD129: 0 | AE129: 0 | AF129: 0 | AG129: 0
K130: 21 | L130: 0 | M130: 0 | N130: 0 | O130: 0 | P130: 0 | Q130: 0 | R130: 0 | S130: 0 | T130: 0 | U130: 0 | V130: 0 | W130: 0 | X130: 0 | Y130: 9 | Z130: 0 | AA130: 1 | AB130: 0 | AC130: 0 | AD130: 0 | AE130: 0 | AF130: 0 | AG130: 0
K131: 22 | L131: 0 | M131: 0 | N131: 0 | O131: 0 | P131: 0 | Q131: 0 | R131: 0 | S131: 30 | T131: 0 | U131: 0 | V131: 0 | W131: 0 | X131: 0 | Y131: 43 | Z131: 0 | AA131: 12 | AB131: 0 | AC131: 0 | AD131: 0 | AE131: 0 | AF131: 0 | AG131: 0
K132: 23 | L132: 0 | M132: 0 | N132: 0 | O132: 0 | P132: 0 | Q132: 0 | R132: 0 | S132: 34 | T132: 0 | U132: 0 | V132: 0 | W132: 0 | X132: 0 | Y132: 39 | Z132: 0 | AA132: 0 | AB132: 0 | AC132: 0 | AD132: 0 | AE132: 0 | AF132: 2 | AG132: 0
K133: 24 | L133: 0 | M133: 0 | N133: 0 | O133: 0 | P133: 0 | Q133: 0 | R133: 0 | S133: 38 | T133: 0 | U133: 0 | V133: 0 | W133: 0 | X133: 0 | Y133: 0 | Z133: 0 | AA133: 0 | AB133: 0 | AC133: 0 | AD133: 0 | AE133: 0 | AF133: 0 | AG133: 0
K134: 25 | L134: 0 | M134: 0 | N134: 0 | O134: 0 | P134: 0 | Q134: 0 | R134: 0 | S134: 32 | T134: 0 | U134: 0 | V134: 0 | W134: 0 | X134: 0 | Y134: 18 | Z134: 0 | AA134: 5 | AB134: 0 | AC134: 0 | AD134: 0 | AE134: 0 | AF134: 0 | AG134: 0
K135: 26 | L135: 0 | M135: 0 | N135: 0 | O135: 0 | P135: 0 | Q135: 0 | R135: 0 | S135: 23 | T135: 0 | U135: 0 | V135: 0 | W135: 12 | X135: 0 | Y135: 0 | Z135: 0 | AA135: 0 | AB135: 0 | AC135: 0 | AD135: 0 | AE135: 0 | AF135: 0 | AG135: 0
K136: 27 | L136: 0 | M136: 0 | N136: 0 | O136: 0 | P136: 0 | Q136: 0 | R136: 0 | S136: 37 | T136: 0 | U136: 0 | V136: 0 | W136: 5 | X136: 0 | Y136: 6 | Z136: 0 | AA136: 4 | AB136: 0 | AC136: 0 | AD136: 0 | AE136: 0 | AF136: 0 | AG136: 0
K137: 28 | L137: 0 | M137: 0 | N137: 0 | O137: 0 | P137: 0 | Q137: 0 | R137: 0 | S137: 26 | T137: 0 | U137: 0 | V137: 0 | W137: 0 | X137: 0 | Y137: 35 | Z137: 0 | AA137: 15 | AB137: 0 | AC137: 0 | AD137: 0 | AE137: 0 | AF137: 0 | AG137: 0
K138: 29 | L138: 0 | M138: 0 | N138: 0 | O138: 0 | P138: 0 | Q138: 0 | R138: 0 | S138: 39 | T138: 0 | U138: 0 | V138: 0 | W138: 5 | X138: 0 | Y138: 40 | Z138: 0 | AA138: 0 | AB138: 0 | AC138: 0 | AD138: 0 | AE138: 0 | AF138: 0 | AG138: 0
K139: 30 | L139: 0 | M139: 0 | N139: 0 | O139: 0 | P139: 0 | Q139: 0 | R139: 0 | S139: 27 | T139: 0 | U139: 0 | V139: 0 | W139: 0 | X139: 0 | Y139: 21 | Z139: 0 | AA139: 0 | AB139: 0 | AC139: 0 | AD139: 0 | AE139: 0 | AF139: 0 | AG139: 0
K140: 120 | L140: =SUM(L130:L139) -> 0 | M140: =SUM(M130:M139) -> 0 | N140: 0 | O140: 0 | P140: 0 | Q140: 0 | R140: 0 | S140: 286 | T140: 0 | U140: 0 | V140: 0 | W140: 22 | X140: 0 | Y140: 211 | Z140: 0 | AA140: 37 | AB140: 0 | AC140: 0 | AD140: 0 | AE140: 0 | AF140: 2 | AG140: 0
K141: 0 | L141: 0 | M141: 0 | N141: 0 | O141: 1 | P141: 0 | Q141: 0 | R141: 0 | S141: 6 | T141: 0 | U141: 1 | V141: 0 | W141: 4 | X141: 0 | Y141: 0 | Z141: 0 | AA141: 0 | AB141: 0 | AC141: 0 | AD141: 0 | AE141: 0 | AF141: 0 | AG141: 0
K142: 1 | L142: 0 | M142: 0 | N142: 0 | O142: 0 | P142: 0 | Q142: 0 | R142: 0 | S142: 0 | T142: 0 | U142: 0 | V142: 0 | W142: 6 | X142: 0 | Y142: 0 | Z142: 0 | AA142: 1 | AB142: 0 | AC142: 0 | AD142: 0 | AE142: 0 | AF142: 0 | AG142: 0
K143: 2 | L143: 0 | M143: 0 | N143: 0 | O143: 0 | P143: 0 | Q143: 0 | R143: 0 | S143: 1 | T143: 0 | U143: 0 | V143: 0 | W143: 3 | X143: 0 | Y143: 0 | Z143: 0 | AA143: 1 | AB143: 0 | AC143: 0 | AD143: 0 | AE143: 0 | AF143: 0 | AG143: 0
K144: 3 | L144: 0 | M144: 0 | N144: 0 | O144: 0 | P144: 0 | Q144: 0 | R144: 0 | S144: 14 | T144: 0 | U144: 0 | V144: 0 | W144: 0 | X144: 0 | Y144: 0 | Z144: 0 | AA144: 9 | AB144: 0 | AC144: 0 | AD144: 0 | AE144: 0 | AF144: 0 | AG144: 0
K145: 4 | L145: 0 | M145: 0 | N145: 0 | O145: 0 | P145: 0 | Q145: 0 | R145: 0 | S145: 27 | T145: 0 | U145: 0 | V145: 0 | W145: 0 | X145: 0 | Y145: 0 | Z145: 0 | AA145: 0 | AB145: 0 | AC145: 0 | AD145: 25 | AE145: 0 | AF145: 0 | AG145: 0
K146: 5 | L146: 0 | M146: 0 | N146: 0 | O146: 0 | P146: 0 | Q146: 0 | R146: 0 | S146: 11 | T146: 0 | U146: 0 | V146: 0 | W146: 2 | X146: 0 | Y146: 14 | Z146: 0 | AA146: 0 | AB146: 0 | AC146: 0 | AD146: 0 | AE146: 0 | AF146: 0 | AG146: 0
K147: 6 | L147: 0 | M147: 0 | N147: 0 | O147: 0 | P147: 0 | Q147: 0 | R147: 0 | S147: 9 | T147: 0 | U147: 2 | V147: 0 | W147: 0 | X147: 0 | Y147: 38 | Z147: 0 | AA147: 0 | AB147: 0 | AC147: 0 | AD147: 4 | AE147: 0 | AF147: 0 | AG147: 0
K148: 7 | L148: 0 | M148: 0 | N148: 0 | O148: 0 | P148: 0 | Q148: 0 | R148: 0 | S148: 0 | T148: 0 | U148: 0 | V148: 0 | W148: 3 | X148: 0 | Y148: 0 | Z148: 0 | AA148: 11 | AB148: 0 | AC148: 0 | AD148: 13 | AE148: 0 | AF148: 0 | AG148: 0
K149: 8 | L149: 0 | M149: 0 | N149: 3 | O149: 0 | P149: 0 | Q149: 0 | R149: 0 | S149: 0 | T149: 0 | U149: 0 | V149: 0 | W149: 0 | X149: 0 | Y149: 0 | Z149: 0 | AA149: 4 | AB149: 1 | AC149: 0 | AD149: 14 | AE149: 0 | AF149: 0 | AG149: 0
K150: 9 | L150: 0 | M150: 0 | N150: 0 | O150: 0 | P150: 0 | Q150: 0 | R150: 0 | S150: 0 | T150: 0 | U150: 0 | V150: 0 | W150: 25 | X150: 0 | Y150: 0 | Z150: 0 | AA150: 1 | AB150: 2 | AC150: 7 | AD150: 12 | AE150: 3 | AF150: 0 | AG150: 0
K151: 10 | L151: 0 | M151: 0 | N151: 22 | O151: 0 | P151: 1 | Q151: 0 | R151: 0 | S151: 0 | T151: 0 | U151: 0 | V151: 0 | W151: 8 | X151: 1 | Y151: 0 | Z151: 2 | AA151: 3 | AB151: 0 | AC151: 0 | AD151: 0 | AE151: 1 | AF151: 0 | AG151: 0
K152: 130 | L152: =SUM(L141:L151) -> 0 | M152: =SUM(M141:M151) -> 0 | N152: =SUM(N141:N151) -> 25 | O152: 1 | P152: 1 | Q152: 0 | R152: 0 | S152: 68 | T152: 0 | U152: 3 | V152: 0 | W152: 51 | X152: 1 | Y152: 52 | Z152: 2 | AA152: 30 | AB152: 3 | AC152: 7 | AD152: 68 | AE152: 4 | AF152: 0 | AG152: 0
K153: 11 | L153: 0 | M153: 0 | N153: 14 | O153: 0 | P153: 0 | Q153: 0 | R153: 0 | S153: 1 | T153: 0 | U153: 0 | V153: 0 | W153: 2 | X153: 0 | Y153: 0 | Z153: 0 | AA153: 0 | AB153: 0 | AC153: 0 | AD153: 0 | AE153: 0 | AF153: 0 | AG153: 0
K154: 12 | L154: 0 | M154: 0 | N154: 0 | O154: 0 | P154: 0 | Q154: 0 | R154: 0 | S154: 13 | T154: 0 | U154: 0 | V154: 0 | W154: 0 | X154: 0 | Y154: 0 | Z154: 0 | AA154: 0 | AB154: 0 | AC154: 0 | AD154: 0 | AE154: 11 | AF154: 0 | AG154: 0
K155: 13 | L155: 0 | M155: 0 | N155: 16 | O155: 0 | P155: 0 | Q155: 0 | R155: 0 | S155: 22 | T155: 0 | U155: 14 | V155: 0 | W155: 2 | X155: 0 | Y155: 0 | Z155: 0 | AA155: 1 | AB155: 0 | AC155: 0 | AD155: 0 | AE155: 0 | AF155: 0 | AG155: 0
K156: 14 | L156: 0 | M156: 0 | N156: 2 | O156: 0 | P156: 0 | Q156: 0 | R156: 0 | S156: 35 | T156: 0 | U156: 0 | V156: 0 | W156: 0 | X156: 0 | Y156: 0 | Z156: 0 | AA156: 0 | AB156: 0 | AC156: 0 | AD156: 0 | AE156: 0 | AF156: 0 | AG156: 0
K157: 15 | L157: 0 | M157: 0 | N157: 12 | O157: 0 | P157: 0 | Q157: 0 | R157: 0 | S157: 25 | T157: 0 | U157: 0 | V157: 0 | W157: 0 | X157: 0 | Y157: 0 | Z157: 0 | AA157: 0 | AB157: 3 | AC157: 0 | AD157: 2 | AE157: 0 | AF157: 0 | AG157: 0
K158: 16 | L158: 0 | M158: 0 | N158: 6 | O158: 0 | P158: 0 | Q158: 0 | R158: 0 | S158: 46 | T158: 0 | U158: 0 | V158: 0 | W158: 0 | X158: 0 | Y158: 22 | Z158: 0 | AA158: 0 | AB158: 5 | AC158: 0 | AD158: 0 | AE158: 0 | AF158: 0 | AG158: 0
K159: 17 | L159: 0 | M159: 0 | N159: 0 | O159: 0 | P159: 0 | Q159: 0 | R159: 0 | S159: 28 | T159: 0 | U159: 0 | V159: 0 | W159: 0 | X159: 0 | Y159: 0 | Z159: 0 | AA159: 0 | AB159: 0 | AC159: 0 | AD159: 0 | AE159: 0 | AF159: 0 | AG159: 0
K160: 18 | L160: 0 | M160: 0 | N160: 0 | O160: 0 | P160: 0 | Q160: 0 | R160: 0 | S160: 10 | T160: 0 | U160: 0 | V160: 0 | W160: 0 | X160: 0 | Y160: 0 | Z160: 0 | AA160: 1 | AB160: 0 | AC160: 0 | AD160: 4 | AE160: 0 | AF160: 0 | AG160: 0
K161: 19 | L161: 0 | M161: 0 | N161: 0 | O161: 0 | P161: 0 | Q161: 0 | R161: 0 | S161: 6 | T161: 0 | U161: 0 | V161: 0 | W161: 0 | X161: 0 | Y161: 0 | Z161: 0 | AA161: 21 | AB161: 7 | AC161: 0 | AD161: 0 | AE161: 0 | AF161: 0 | AG161: 0
K162: 20 | L162: 0 | M162: 0 | N162: 0 | O162: 0 | P162: 2 | Q162: 0 | R162: 0 | S162: 10 | T162: 0 | U162: 0 | V162: 0 | W162: 0 | X162: 0 | Y162: 5 | Z162: 0 | AA162: 12 | AB162: 3 | AC162: 0 | AD162: 31 | AE162: 0 | AF162: 0 | AG162: 0
K163: 140 | L163: =SUM(L153:L162) -> 0 | M163: =SUM(M153:M162) -> 0 | N163: 50 | O163: 0 | P163: 2 | Q163: 0 | R163: 0 | S163: 196 | T163: 0 | U163: 14 | V163: 0 | W163: 4 | X163: 0 | Y163: 27 | Z163: 0 | AA163: 35 | AB163: 18 | AC163: 0 | AD163: 37 | AE163: 11 | AF163: 0 | AG163: 0
K164: 21 | L164: 0 | M164: 0 | N164: 0 | O164: 0 | P164: 6 | Q164: 1 | R164: 0 | S164: 0 | T164: 0 | U164: 0 | V164: 0 | W164: 0 | X164: 0 | Y164: 0 | Z164: 0 | AA164: 0 | AB164: 0 | AC164: 0 | AD164: 14 | AE164: 0 | AF164: 0 | AG164: 0
K165: 22 | L165: 0 | M165: 0 | N165: 0 | O165: 0 | P165: 0 | Q165: 1 | R165: 0 | S165: 0 | T165: 0 | U165: 0 | V165: 0 | W165: 0 | X165: 0 | Y165: 0 | Z165: 0 | AA165: 0 | AB165: 0 | AC165: 0 | AD165: 0 | AE165: 0 | AF165: 0 | AG165: 0
K166: 23 | L166: 0 | M166: 0 | N166: 0 | O166: 0 | P166: 0 | Q166: 0 | R166: 0 | S166: 21 | T166: 0 | U166: 0 | V166: 0 | W166: 0 | X166: 0 | Y166: 0 | Z166: 0 | AA166: 0 | AB166: 0 | AC166: 0 | AD166: 0 | AE166: 0 | AF166: 0 | AG166: 0
K167: 24 | L167: 0 | M167: 0 | N167: 0 | O167: 0 | P167: 0 | Q167: 0 | R167: 0 | S167: 12 | T167: 1 | U167: 0 | V167: 0 | W167: 0 | X167: 0 | Y167: 0 | Z167: 0 | AA167: 0 | AB167: 0 | AC167: 0 | AD167: 0 | AE167: 0 | AF167: 0 | AG167: 0
K168: 25 | L168: 0 | M168: 0 | N168: 0 | O168: 0 | P168: 0 | Q168: 0 | R168: 0 | S168: 0 | T168: 0 | U168: 0 | V168: 0 | W168: 0 | X168: 0 | Y168: 0 | Z168: 0 | AA168: 0 | AB168: 0 | AC168: 0 | AD168: 0 | AE168: 0 | AF168: 0 | AG168: 0
K169: 26 | L169: 0 | M169: 0 | N169: 18 | O169: 0 | P169: 0 | Q169: 0 | R169: 10 | S169: 5 | T169: 3 | U169: 0 | V169: 0 | W169: 0 | X169: 0 | Y169: 0 | Z169: 0 | AA169: 0 | AB169: 0 | AC169: 0 | AD169: 0 | AE169: 0 | AF169: 0 | AG169: 0
K170: 27 | L170: 0 | M170: 0 | N170: 27 | O170: 0 | P170: 0 | Q170: 0 | R170: 3 | S170: 5 | T170: 0 | U170: 0 | V170: 0 | W170: 0 | X170: 0 | Y170: 0 | Z170: 0 | AA170: 0 | AB170: 0 | AC170: 0 | AD170: 0 | AE170: 0 | AF170: 0 | AG170: 0
K171: 28 | L171: 0 | M171: 0 | N171: 21 | O171: 0 | P171: 0 | Q171: 0 | R171: 0 | S171: 0 | T171: 0 | U171: 0 | V171: 0 | W171: 0 | X171: 0 | Y171: 0 | Z171: 0 | AA171: 0 | AB171: 0 | AC171: 0 | AD171: 0 | AE171: 0 | AF171: 0 | AG171: 0
K172: 29 | L172: 0 | M172: 0 | N172: 1 | O172: 0 | P172: 0 | Q172: 0 | R172: 0 | S172: 2 | T172: 0 | U172: 0 | V172: 0 | W172: 0 | X172: 0 | Y172: 0 | Z172: 0 | AA172: 0 | AB172: 0 | AC172: 0 | AD172: 0 | AE172: 0 | AF172: 0 | AG172: 0
K173: 30 | L173: 0 | M173: 0 | N173: 0 | O173: 0 | P173: 2 | Q173: 0 | R173: 0 | S173: 0 | T173: 5 | U173: 0 | V173: 0 | W173: 0 | X173: 0 | Y173: 0 | Z173: 0 | AA173: 0 | AB173: 0 | AC173: 0 | AD173: 0 | AE173: 0 | AF173: 0 | AG173: 0
K174: 150 | L174: =SUM(L164:L173) -> 0 | M174: =SUM(M164:M173) -> 0 | N174: 67 | O174: 0 | P174: 8 | Q174: 2 | R174: 13 | S174: 45 | T174: 9 | U174: 0 | V174: 0 | W174: 0 | X174: 0 | Y174: 0 | Z174: 0 | AA174: 0 | AB174: 0 | AC174: 0 | AD174: 14 | AE174: 0 | AF174: 0 | AG174: 0
K175: 0 | L175: 0 | M175: 0 | N175: 1 | O175: 0 | P175: 4 | Q175: 0 | R175: 0 | S175: 0 | T175: 0 | U175: 0 | V175: 0 | W175: 0 | X175: 0 | Y175: 0 | Z175: 0 | AA175: 0 | AB175: 0 | AC175: 0 | AD175: 0 | AE175: 0 | AF175: 0 | AG175: 0
K176: 1 | L176: 0 | M176: 0 | N176: 32 | O176: 0 | P176: 2 | Q176: 0 | R176: 26 | S176: 0 | T176: 2 | U176: 0 | V176: 1 | W176: 0 | X176: 0 | Y176: 0 | Z176: 0 | AA176: 0 | AB176: 0 | AC176: 0 | AD176: 0 | AE176: 0 | AF176: 0 | AG176: 0
K177: 2 | L177: 0 | M177: 0 | N177: 0 | O177: 0 | P177: 4 | Q177: 0 | R177: 0 | S177: 0 | T177: 0 | U177: 0 | V177: 0 | W177: 0 | X177: 0 | Y177: 0 | Z177: 0 | AA177: 0 | AB177: 0 | AC177: 0 | AD177: 0 | AE177: 0 | AF177: 0 | AG177: 0
K178: 3 | L178: 0 | M178: 0 | N178: 0 | O178: 0 | P178: 0 | Q178: 0 | R178: 3 | S178: 1 | T178: 0 | U178: 0 | V178: 0 | W178: 0 | X178: 0 | Y178: 1 | Z178: 0 | AA178: 0 | AB178: 0 | AC178: 0 | AD178: 0 | AE178: 0 | AF178: 0 | AG178: 0
K179: 4 | L179: 0 | M179: 0 | N179: 0 | O179: 0 | P179: 0 | Q179: 0 | R179: 15 | S179: 2 | T179: 1 | U179: 0 | V179: 0 | W179: 0 | X179: 0 | Y179: 0 | Z179: 0 | AA179: 0 | AB179: 0 | AC179: 0 | AD179: 0 | AE179: 0 | AF179: 0 | AG179: 0
K180: 5 | L180: 0 | M180: 0 | N180: 0 | O180: 0 | P180: 0 | Q180: 0 | R180: 0 | S180: 0 | T180: 1 | U180: 0 | V180: 0 | W180: 0 | X180: 0 | Y180: 0 | Z180: 0 | AA180: 0 | AB180: 0 | AC180: 0 | AD180: 0 | AE180: 0 | AF180: 0 | AG180: 0
K181: 6 | L181: 0 | M181: 0 | N181: 0 | O181: 0 | P181: 0 | Q181: 0 | R181: 19 | S181: 2 | T181: 0 | U181: 0 | V181: 1 | W181: 0 | X181: 0 | Y181: 0 | Z181: 0 | AA181: 0 | AB181: 0 | AC181: 0 | AD181: 0 | AE181: 0 | AF181: 0 | AG181: 0
K182: 7 | L182: 0 | M182: 0 | N182: 0 | O182: 2 | P182: 0 | Q182: 0 | R182: 2 | S182: 0 | T182: 0 | U182: 0 | V182: 0 | W182: 0 | X182: 0 | Y182: 0 | Z182: 0 | AA182: 0 | AB182: 0 | AC182: 0 | AD182: 0 | AE182: 0 | AF182: 0 | AG182: 0
K183: 8 | L183: 0 | M183: 0 | N183: 0 | O183: 6 | P183: 0 | Q183: 0 | R183: 0 | S183: 0 | T183: 0 | U183: 0 | V183: 0 | W183: 0 | X183: 0 | Y183: 0 | Z183: 0 | AA183: 0 | AB183: 0 | AC183: 0 | AD183: 0 | AE183: 0 | AF183: 0 | AG183: 0
K184: 9 | L184: 0 | M184: 0 | N184: 0 | O184: 1 | P184: 0 | Q184: 0 | R184: 4 | S184: 0 | T184: 0 | U184: 0 | V184: 1 | W184: 0 | X184: 0 | Y184: 0 | Z184: 0 | AA184: 0 | AB184: 0 | AC184: 0 | AD184: 0 | AE184: 0 | AF184: 5 | AG184: 0
K185: 10 | L185: 0 | M185: 0 | N185: 0 | O185: 11 | P185: 0 | Q185: 0 | R185: 0 | S185: 1 | T185: 0 | U185: 0 | V185: 0 | W185: 0 | X185: 0 | Y185: 0 | Z185: 0 | AA185: 0 | AB185: 0 | AC185: 0 | AD185: 0 | AE185: 0 | AF185: 23 | AG185: 0
K186: 160 | L186: =SUM(L175:L185) -> 0 | M186: =SUM(M175:M185) -> 0 | N186: =SUM(N175:N185) -> 33 | O186: 20 | P186: 10 | Q186: 0 | R186: 69 | S186: 6 | T186: 4 | U186: 0 | V186: 3 | W186: 0 | X186: 0 | Y186: 1 | Z186: 0 | AA186: 0 | AB186: 0 | AC186: 0 | AD186: 0 | AE186: 0 | AF186: 28 | AG186: 0
K187: 11 | L187: 0 | M187: 0 | N187: 0 | O187: 14 | P187: 0 | Q187: 0 | R187: 35 | S187: 0 | T187: 2 | U187: 0 | V187: 0 | W187: 0 | X187: 0 | Y187: 0 | Z187: 0 | AA187: 0 | AB187: 0 | AC187: 0 | AD187: 0 | AE187: 0 | AF187: 13 | AG187: 0
K188: 12 | L188: 0 | M188: 0 | N188: 0 | O188: 3 | P188: 0 | Q188: 0 | R188: 44 | S188: 0 | T188: 10 | U188: 3 | V188: 0 | W188: 0 | X188: 0 | Y188: 0 | Z188: 0 | AA188: 0 | AB188: 0 | AC188: 0 | AD188: 0 | AE188: 0 | AF188: 13 | AG188: 0
K189: 13 | L189: 0 | M189: 0 | N189: 0 | O189: 21 | P189: 0 | Q189: 0 | R189: 28 | S189: 0 | T189: 0 | U189: 0 | V189: 0 | W189: 0 | X189: 0 | Y189: 0 | Z189: 0 | AA189: 0 | AB189: 0 | AC189: 0 | AD189: 0 | AE189: 0 | AF189: 3 | AG189: 0
K190: 14 | L190: 0 | M190: 0 | N190: 0 | O190: 21 | P190: 0 | Q190: 0 | R190: 29 | S190: 0 | T190: 0 | U190: 0 | V190: 0 | W190: 0 | X190: 0 | Y190: 0 | Z190: 0 | AA190: 0 | AB190: 0 | AC190: 0 | AD190: 0 | AE190: 0 | AF190: 0 | AG190: 0
K191: 15 | L191: 0 | M191: 0 | N191: 0 | O191: 3 | P191: 0 | Q191: 0 | R191: 14 | S191: 0 | T191: 0 | U191: 0 | V191: 0 | W191: 0 | X191: 0 | Y191: 0 | Z191: 0 | AA191: 0 | AB191: 0 | AC191: 0 | AD191: 0 | AE191: 0 | AF191: 0 | AG191: 0
K192: 16 | L192: 0 | M192: 0 | N192: 0 | O192: 0 | P192: 0 | Q192: 0 | R192: 25 | S192: 0 | T192: 0 | U192: 0 | V192: 0 | W192: 0 | X192: 0 | Y192: 0 | Z192: 0 | AA192: 0 | AB192: 0 | AC192: 0 | AD192: 0 | AE192: 0 | AF192: 0 | AG192: 0
K193: 17 | L193: 0 | M193: 0 | N193: 0 | O193: 6 | P193: 0 | Q193: 0 | R193: 27 | S193: 0 | T193: 10 | U193: 0 | V193: 0 | W193: 0 | X193: 0 | Y193: 0 | Z193: 0 | AA193: 0 | AB193: 0 | AC193: 0 | AD193: 0 | AE193: 0 | AF193: 0 | AG193: 0
K194: 18 | L194: 0 | M194: 0 | N194: 0 | O194: 1 | P194: 0 | Q194: 0 | R194: 3 | S194: 0 | T194: 0 | U194: 0 | V194: 0 | W194: 0 | X194: 0 | Y194: 0 | Z194: 0 | AA194: 0 | AB194: 0 | AC194: 0 | AD194: 0 | AE194: 0 | AF194: 0 | AG194: 0
K195: 19 | L195: 0 | M195: 0 | N195: 0 | O195: 1 | P195: 0 | Q195: 0 | R195: 0 | S195: 0 | T195: 0 | U195: 0 | V195: 0 | W195: 0 | X195: 0 | Y195: 0 | Z195: 0 | AA195: 0 | AB195: 0 | AC195: 0 | AD195: 0 | AE195: 0 | AF195: 0 | AG195: 0
K196: 20 | L196: 0 | M196: 0 | N196: 0 | O196: 0 | P196: 0 | Q196: 0 | R196: 11 | S196: 0 | T196: 3 | U196: 0 | V196: 6 | W196: 0 | X196: 0 | Y196: 0 | Z196: 0 | AA196: 0 | AB196: 0 | AC196: 0 | AD196: 0 | AE196: 0 | AF196: 0 | AG196: 0
K197: 170 | L197: =SUM(L187:L196) -> 0 | M197: =SUM(M187:M196) -> 0 | N197: 0 | O197: 70 | P197: 0 | Q197: 0 | R197: 216 | S197: 0 | T197: 25 | U197: 3 | V197: 6 | W197: 0 | X197: 0 | Y197: 0 | Z197: 0 | AA197: 0 | AB197: 0 | AC197: 0 | AD197: 0 | AE197: 0 | AF197: 29 | AG197: 0
K198: 21 | L198: 0 | M198: 0 | N198: 0 | O198: 4 | P198: 0 | Q198: 0 | R198: 9 | S198: 0 | T198: 25 | U198: 0 | V198: 3 | W198: 0 | X198: 0 | Y198: 0 | Z198: 0 | AA198: 0 | AB198: 0 | AC198: 0 | AD198: 0 | AE198: 0 | AF198: 0 | AG198: 0
K199: 22 | L199: 0 | M199: 0 | N199: 0 | O199: 0 | P199: 0 | Q199: 0 | R199: 3 | S199: 0 | T199: 3 | U199: 0 | V199: 9 | W199: 0 | X199: 0 | Y199: 0 | Z199: 2 | AA199: 0 | AB199: 0 | AC199: 0 | AD199: 0 | AE199: 0 | AF199: 0 | AG199: 0
K200: 23 | L200: 0 | M200: 0 | N200: 0 | O200: 3 | P200: 0 | Q200: 0 | R200: 2 | S200: 0 | T200: 19 | U200: 0 | V200: 0 | W200: 0 | X200: 0 | Y200: 0 | Z200: 9 | AA200: 0 | AB200: 0 | AC200: 0 | AD200: 0 | AE200: 0 | AF200: 0 | AG200: 0
K201: 24 | L201: 0 | M201: 0 | N201: 0 | O201: 3 | P201: 0 | Q201: 0 | R201: 0 | S201: 0 | T201: 11 | U201: 0 | V201: 0 | W201: 0 | X201: 0 | Y201: 0 | Z201: 0 | AA201: 0 | AB201: 0 | AC201: 0 | AD201: 0 | AE201: 0 | AF201: 0 | AG201: 0
... 41 more rows

Sheet 8c right graph
B2: v/v | C2: v/d | D2: d/v | E2: d/d
B3: 586 | C3: 33 | D3: 725 | E3: 239
B4: 284 | C4: 47 | D4: 1026 | E4: 55
B5: 840 | C5: 37 | D5: 227 | E5: 56
B6: 217 | C6: 22 | D6: 493 | E6: 127
B7: 303 | C7: 61 | D7: 345 | E7: 68
D8: 153 | E8: 20
A9: avg | B9: =AVERAGE(B3:B7) -> 446 | C9: =AVERAGE(C3:C7) -> 40 | D9: =AVERAGE(D3:D8) -> 494.8333333 | E9: =AVERAGE(E3:E8) -> 94.16666667
A10: SEM | B10: =STDEV(B3:B7)/SQRT(COUNT(B3:B7)) -> 117.0405912 | C10: =STDEV(C3:C7)/SQRT(COUNT(C3:C7)) -> 6.603029608 | D10: =STDEV(D3:D8)/SQRT(COUNT(D3:D8)) -> 134.9262556 | E10: =STDEV(E3:E8)/SQRT(COUNT(E3:E8)) -> 32.26496208

Sheet 8d
A1: dermatitis score
A2: systemic treatment TPA023B/ veh once per day
B5: Vehicle | D5: TPA023B
A6: day | B6: mean | C6: SEM | D6: mean | E6: SEM
A7: 0 | B7: 5.75 | C7: 0.365963 | D7: 6.571429 | E7: 0.611678
A8: 1 | B8: 6.875 | C8: 0.580563 | D8: 7.142857 | E8: 0.404061
A9: 2 | B9: 6.875 | C9: 0.580563 | D9: 7.285714 | E9: 0.42056
A10: 3 | B10: 7 | C10: 0.566947 | D10: 7.428571 | E10: 0.368856
A11: 4 | B11: 7.375 | C11: 0.497763 | D11: 7.428571 | E11: 0.368856
A12: 5 | B12: 7.375 | C12: 0.497763 | D12: 7.285714 | E12: 0.42056
A13: 6 | B13: 7.25 | C13: 0.526104 | D13: 6.428571 | E13: 0.528121
A14: 7 | B14: 7.125 | C14: 0.548944 | D14: 5.142857 | E14: 0.857143
A15: 8 | B15: 7.125 | C15: 0.548944 | D15: 3.714286 | E15: 0.473804
A16: 9 | B16: 6.625 | C16: 0.6529466 | D16: 2.571429 | E16: 0.6851188
A22: score of single mice
A23: Vehicle
A24: day of treatment | B24: 0 | C24: 1 | D24: 2 | E24: 3 | F24: 4 | G24: 5 | H24: 6 | I24: 7 | J24: 8 | K24: 9
A25: mouse 1 | B25: 5 | C25: 5 | D25: 5 | E25: 5 | F25: 6 | G25: 6 | H25: 6 | I25: 6 | J25: 6 | K25: 4
A26: mouse 2 | B26: 5 | C26: 5 | D26: 5 | E26: 5 | F26: 6 | G26: 6 | H26: 6 | I26: 6 | J26: 6 | K26: 5
A27: mouse 3 | B27: 5 | C27: 7 | D27: 7 | E27: 7 | F27: 7 | G27: 7 | H27: 7 | I27: 6 | J27: 6 | K27: 6
A28: mouse 4 | B28: 7 | C28: 8 | D28: 8 | E28: 8 | F28: 9 | G28: 9 | H28: 9 | I28: 9 | J28: 9 | K28: 8
A29: mouse 5 | B29: 5 | C29: 6 | D29: 6 | E29: 6 | F29: 6 | G29: 6 | H29: 6 | I29: 6 | J29: 6 | K29: 6
A30: mouse 6 | B30: 5 | C30: 6 | D30: 6 | E30: 7 | F30: 7 | G30: 7 | H30: 6 | I30: 6 | J30: 6 | K30: 6
A31: mouse 7 | B31: 7 | C31: 9 | D31: 9 | E31: 9 | F31: 9 | G31: 9 | H31: 9 | I31: 9 | J31: 9 | K31: 9
A32: mouse 8 | B32: 7 | C32: 9 | D32: 9 | E32: 9 | F32: 9 | G32: 9 | H32: 9 | I32: 9 | J32: 9 | K32: 9
A33: mean | B33: =AVERAGE(B25:B32) -> 5.75 | C33: =AVERAGE(C25:C32) -> 6.875 | D33: =AVERAGE(D25:D32) -> 6.875 | E33: =AVERAGE(E25:E32) -> 7 | F33: =AVERAGE(F25:F32) -> 7.375 | G33: =AVERAGE(G25:G32) -> 7.375 | H33: =AVERAGE(H25:H32) -> 7.25 | I33: =AVERAGE(I25:I32) -> 7.125 | J33: =AVERAGE(J25:J32) -> 7.125 | K33: =AVERAGE(K25:K32) -> 6.625
A34: SEM | B34: =STDEV(B25:B32)/SQRT(COUNT(B25:B32)) -> 0.3659625274 | C34: =STDEV(C25:C32)/SQRT(COUNT(C25:C32)) -> 0.5805631503 | D34: =STDEV(D25:D32)/SQRT(COUNT(D25:D32)) -> 0.5805631503 | E34: =STDEV(E25:E32)/SQRT(COUNT(E25:E32)) -> 0.5669467095 | F34: =STDEV(F25:F32)/SQRT(COUNT(F25:F32)) -> 0.4977628523 | G34: =STDEV(G25:G32)/SQRT(COUNT(G25:G32)) -> 0.4977628523 | H34: =STDEV(H25:H32)/SQRT(COUNT(H25:H32)) -> 0.5261042808 | I34: =STDEV(I25:I32)/SQRT(COUNT(I25:I32)) -> 0.548943791 | J34: =STDEV(J25:J32)/SQRT(COUNT(J25:J32)) -> 0.548943791 | K34: =STDEV(K25:K32)/SQRT(COUNT(K25:K32)) -> 0.6529466178
A37: TPA023B
A38: mouse 1 | B38: 7 | C38: 7 | D38: 7 | E38: 7 | F38: 6 | G38: 6 | H38: 5 | I38: 3 | J38: 3 | K38: 2
A39: mouse 2 | B39: 7 | C39: 8 | D39: 8 | E39: 8 | F39: 7 | G39: 6 | H39: 5 | I39: 3 | J39: 3 | K39: 1
A40: mouse 3 | B40: 7 | C40: 7 | D40: 7 | E40: 7 | F40: 7 | G40: 7 | H40: 7 | I40: 3 | J40: 3 | K40: 1
A41: mouse 4 | B41: 7 | C41: 7 | D41: 8 | E41: 8 | F41: 8 | G41: 8 | H41: 6 | I41: 6 | J41: 5 | K41: 4
A42: mouse 5 | B42: 9 | C42: 9 | D42: 9 | E42: 9 | F42: 9 | G42: 9 | H42: 9 | I42: 9 | J42: 6 | K42: 6
A43: mouse 6 | B43: 5 | C43: 6 | D43: 6 | E43: 6 | F43: 8 | G43: 8 | H43: 6 | I43: 6 | J43: 3 | K43: 2
A44: mouse 7 | B44: 4 | C44: 6 | D44: 6 | E44: 7 | F44: 7 | G44: 7 | H44: 7 | I44: 6 | J44: 3 | K44: 2
A45: mean | B45: =AVERAGE(B37:B44) -> 6.571428571 | C45: =AVERAGE(C37:C44) -> 7.142857143 | D45: =AVERAGE(D37:D44) -> 7.285714286 | E45: =AVERAGE(E37:E44) -> 7.428571429 | F45: =AVERAGE(F37:F44) -> 7.428571429 | G45: =AVERAGE(G37:G44) -> 7.285714286 | H45: =AVERAGE(H37:H44) -> 6.428571429 | I45: =AVERAGE(I37:I44) -> 5.142857143 | J45: =AVERAGE(J37:J44) -> 3.714285714 | K45: =AVERAGE(K37:K44) -> 2.571428571
A46: SEM | B46: =STDEV(B37:B44)/SQRT(COUNT(B37:B44)) -> 0.6116777418 | C46: =STDEV(C37:C44)/SQRT(COUNT(C37:C44)) -> 0.4040610178 | D46: =STDEV(D37:D44)/SQRT(COUNT(D37:D44)) -> 0.4205600413 | E46: =STDEV(E37:E44)/SQRT(COUNT(E37:E44)) -> 0.3688555568 | F46: =STDEV(F37:F44)/SQRT(COUNT(F37:F44)) -> 0.3688555568 | G46: =STDEV(G37:G44)/SQRT(COUNT(G37:G44)) -> 0.4205600413 | H46: =STDEV(H37:H44)/SQRT(COUNT(H37:H44)) -> 0.528120786 | I46: =STDEV(I37:I44)/SQRT(COUNT(I37:I44)) -> 0.8571428571 | J46: =STDEV(J37:J44)/SQRT(COUNT(J37:J44)) -> 0.4738035415 | K46: =STDEV(K37:K44)/SQRT(COUNT(K37:K44)) -> 0.685118789

Sheet 8e
A1: topical treatment TPA023B/ veh once per day
A4: total number of scratching bouts
A5: mouse | B5: vehicle | C5: TPA023B
A6: 1 | B6: 1082 | C6: 656
A7: 2 | B7: 243 | C7: 685
A8: 3 | B8: 348 | C8: 302
A9: 4 | B9: 390 | C9: 395
A10: 5 | B10: 269 | C10: 260
A11: 6 | B11: 29 | C11: 101
A12: avg | B12: 393.5 | C12: 399.8333333
A13: SEM | B13: 146.8701808 | C13: 94.05509615
A17: dermatitis score
B18: Vehicle | D18: TPA023B
A19: day | B19: mean | C19: SEM | D19: mean | E19: SEM
A20: 0 | B20: =B42 -> 5.666666667 | C20: =B43 -> 0.714920353 | D20: =B54 -> 5.571428571 | E20: =B55 -> 0.719031851
A21: 1 | B21: =C42 -> 6.833333333 | C21: =C43 -> 0.4772607021 | D21: =C54 -> 7.142857143 | E21: =C55 -> 0.4040610178
A22: 2 | B22: =D42 -> 7 | C22: =D43 -> 0.5163977795 | D22: =D54 -> 7.285714286 | E22: =D55 -> 0.3595159255
A23: 3 | B23: =E42 -> 7 | C23: =E43 -> 0.4472135955 | D23: =E54 -> 7.428571429 | E23: =E55 -> 0.2973808571
A24: 4 | B24: =F42 -> 7 | C24: =F43 -> 0.5163977795 | D24: =F54 -> 7.428571429 | E24: =F55 -> 0.3688555568
A25: 5 | B25: =G42 -> 7 | C25: =G43 -> 0.5163977795 | D25: =G54 -> 7.428571429 | E25: =G55 -> 0.3688555568
A26: 6 | B26: =H42 -> 7.166666667 | C26: =H43 -> 0.3073181486 | D26: =H54 -> 6.857142857 | E26: =H55 -> 0.4592214648
A27: 7 | B27: =I42 -> 6.666666667 | C27: =I43 -> 0.4216370214 | D27: =I54 -> 6.571428571 | E27: =I55 -> 0.5714285714
A28: 8 | B28: =J42 -> 6.333333333 | C28: =J43 -> 0.2108185107 | D28: =J54 -> 6.428571429 | E28: =J55 -> 0.2973808571
A29: 9 | B29: =K42 -> 6.333333333 | C29: =K43 -> 0.2108185107 | D29: =K54 -> 6 | E29: =K55 -> 0.2182178902
A33: score of single mice
A34: Vehicle
A35: day of treatment | B35: 0 | C35: 1 | D35: 2 | E35: 3 | F35: 4 | G35: 5 | H35: 6 | I35: 7 | J35: 8 | K35: 9
A36: mouse 1 | B36: 8 | C36: 9 | D36: 9 | E36: 9 | F36: 9 | G36: 9 | H36: 8 | I36: 8 | J36: 7 | K36: 7
A37: mouse 2 | B37: 3 | C37: 7 | D37: 8 | E37: 7 | F37: 7 | G37: 7 | H37: 8 | I37: 8 | J37: 7 | K37: 7
A38: mouse 3 | B38: 7 | C38: 7 | D38: 7 | E38: 7 | F38: 7 | G38: 7 | H38: 7 | I38: 6 | J38: 6 | K38: 6
A39: mouse 4 | B39: 6 | C39: 6 | D39: 6 | E39: 7 | F39: 7 | G39: 7 | H39: 7 | I39: 6 | J39: 6 | K39: 6
A40: mouse 5 | B40: 5 | C40: 6 | D40: 6 | E40: 6 | F40: 7 | G40: 7 | H40: 7 | I40: 6 | J40: 6 | K40: 6
A41: mouse 6 | B41: 5 | C41: 6 | D41: 6 | E41: 6 | F41: 5 | G41: 5 | H41: 6 | I41: 6 | J41: 6 | K41: 6
A42: mean | B42: =AVERAGE(B36:B41) -> 5.666666667 | C42: =AVERAGE(C36:C41) -> 6.833333333 | D42: =AVERAGE(D36:D41) -> 7 | E42: =AVERAGE(E36:E41) -> 7 | F42: =AVERAGE(F36:F41) -> 7 | G42: =AVERAGE(G36:G41) -> 7 | H42: =AVERAGE(H36:H41) -> 7.166666667 | I42: =AVERAGE(I36:I41) -> 6.666666667 | J42: =AVERAGE(J36:J41) -> 6.333333333 | K42: =AVERAGE(K36:K41) -> 6.333333333
A43: SEM | B43: =STDEV(B36:B41)/SQRT(COUNT(B36:B41)) -> 0.714920353 | C43: =STDEV(C36:C41)/SQRT(COUNT(C36:C41)) -> 0.4772607021 | D43: =STDEV(D36:D41)/SQRT(COUNT(D36:D41)) -> 0.5163977795 | E43: =STDEV(E36:E41)/SQRT(COUNT(E36:E41)) -> 0.4472135955 | F43: =STDEV(F36:F41)/SQRT(COUNT(F36:F41)) -> 0.5163977795 | G43: =STDEV(G36:G41)/SQRT(COUNT(G36:G41)) -> 0.5163977795 | H43: =STDEV(H36:H41)/SQRT(COUNT(H36:H41)) -> 0.3073181486 | I43: =STDEV(I36:I41)/SQRT(COUNT(I36:I41)) -> 0.4216370214 | J43: =STDEV(J36:J41)/SQRT(COUNT(J36:J41)) -> 0.2108185107 | K43: =STDEV(K36:K41)/SQRT(COUNT(K36:K41)) -> 0.2108185107
A46: TPA023B
A47: mouse 1 | B47: 8 | C47: 9 | D47: 9 | E47: 9 | F47: 9 | G47: 9 | H47: 9 | I47: 9 | J47: 7 | K47: 7
A48: mouse 2 | B48: 3 | C48: 6 | D48: 6 | E48: 7 | F48: 6 | G48: 6 | H48: 6 | I48: 6 | J48: 6 | K48: 6
A49: mouse 3 | B49: 3 | C49: 6 | D49: 7 | E49: 7 | F49: 7 | G49: 7 | H49: 6 | I49: 6 | J49: 6 | K49: 6
A50: mouse 4 | B50: 6 | C50: 8 | D50: 8 | E50: 8 | F50: 8 | G50: 8 | H50: 7 | I50: 7 | J50: 7 | K50: 6
A51: mouse 5 | B51: 6 | C51: 7 | D51: 7 | E51: 7 | F51: 7 | G51: 7 | H51: 6 | I51: 7 | J51: 7 | K51: 6
A52: mouse 6 | B52: 6 | C52: 7 | D52: 7 | E52: 7 | F52: 7 | G52: 7 | H52: 6 | I52: 4 | J52: 5 | K52: 5
A53: mouse 7 | B53: 7 | C53: 7 | D53: 7 | E53: 7 | F53: 8 | G53: 8 | H53: 8 | I53: 7 | J53: 7 | K53: 6
A54: mean | B54: =AVERAGE(B47:B53) -> 5.571428571 | C54: =AVERAGE(C47:C53) -> 7.142857143 | D54: =AVERAGE(D47:D53) -> 7.285714286 | E54: =AVERAGE(E47:E53) -> 7.428571429 | F54: =AVERAGE(F47:F53) -> 7.428571429 | G54: =AVERAGE(G47:G53) -> 7.428571429 | H54: =AVERAGE(H47:H53) -> 6.857142857 | I54: =AVERAGE(I47:I53) -> 6.571428571 | J54: =AVERAGE(J47:J53) -> 6.428571429 | K54: =AVERAGE(K47:K53) -> 6
A55: SEM | B55: =STDEV(B47:B53)/SQRT(COUNT(B47:B53)) -> 0.719031851 | C55: =STDEV(C47:C53)/SQRT(COUNT(C47:C53)) -> 0.4040610178 | D55: =STDEV(D47:D53)/SQRT(COUNT(D47:D53)) -> 0.3595159255 | E55: =STDEV(E47:E53)/SQRT(COUNT(E47:E53)) -> 0.2973808571 | F55: =STDEV(F47:F53)/SQRT(COUNT(F47:F53)) -> 0.3688555568 | G55: =STDEV(G47:G53)/SQRT(COUNT(G47:G53)) -> 0.3688555568 | H55: =STDEV(H47:H53)/SQRT(COUNT(H47:H53)) -> 0.4592214648 | I55: =STDEV(I47:I53)/SQRT(COUNT(I47:I53)) -> 0.5714285714 | J55: =STDEV(J47:J53)/SQRT(COUNT(J47:J53)) -> 0.2973808571 | K55: =STDEV(K47:K53)/SQRT(COUNT(K47:K53)) -> 0.2182178902
